{"text_format":"1","workbook":"xlsx","n_sheets":24,"sheets":["Cover Page","Facility Info","Contents","Operational Data","Operational Summary","Perf. Form 1","Energy Form 1","Permit Compliance","Improvements","Public Liasion","CO2 N2O","Residue Quality ","Water","Air (periodic)","Air (CEMS)","HCl","SO2","NOx","TOC","Particulates","CO 0.5 hourly","CO 95% 10 min","NH3","Template changes log"],"not_rendered":{"charts":8,"images":3,"macros":1,"external_links":0,"defined_names":24,"comments":0,"pivot_tables":0},"unopened":[],"bounds":{"document_bytes":16777216,"sheet_cells":100000,"rows_first":2000,"rows_last":500,"rows_between":2000,"halvings":0,"cell_chars":16384,"cell_head_chars":4096},"cells_cut":0,"cells_raw":0,"read":"whole","date_system":"1900"}

{"sheet":"Cover Page","index":0,"n_rows":54,"n_cols":14,"rows_kept":54,"cut":false,"hidden":false,"merged":[[13,13,18,15],[34,1,34,8],[0,3,5,6],[7,1,23,8],[28,1,28,8],[30,1,30,8],[32,1,32,8],[49,2,49,3],[49,6,49,8],[53,2,53,3],[36,1,36,8],[40,2,40,8],[42,2,42,4],[44,2,44,4],[46,2,46,3],[46,6,46,8],[47,6,47,8],[47,2,47,3]]}
[null,null,null,{"$error":"#VALUE!"}]
[null,null,null,null,null,null,null,null,null,null,null,null,null,"Version 24.2a (for incinerators) - 27/11/24"]
[]
[null,null,null,null,null,null,null,null,null,null,null,null,null,"Note that there is another version of this template available for co-incinerators"]
[]
[]
[]
[null,"Add photo"]
[]
[]
[]
[]
[null,null,null,null,null,null,null,null,null,null,null,null,null,"Notes:"]
[null,null,null,null,null,null,null,null,null,null,null,null,null,"This template may require adjustments by individual operators to meet specific reporting requirements as defined in the site Permit(s)"]
[]
[]
[]
[]
[]
[]
[]
[]
[]
[]
[]
[]
[]
[]
[null,"Annual Performance Report 2024"]
[]
[null,"Permit EPR/YP3033BE"]
[]
[null,"Edmonton EFW"]
[]
[null,"EcoPark"]
[]
[null,"LondonEnergy Ltd"]
[]
[null,"Year:",2024]
[]
[null,"Address:","LondonEnergy, EcoPark, Advent Way, London, N18 3AG"]
[]
[null,"Tel: ","020 7000 9595"]
[]
[null,"Email: ","HSQE@londonenergyltd.com"]
[]
[null,"Prepared by:","Harvey Barratt",null,null,"Position:","Environmental Advisor"]
[null,null,"Ben Hillyear",null,null,null,"Operations Manager"]
[]
[null,"Approved by:","Elis Jenkins",null,null,"Position:","Senior Environment Lead"]
[]
[null,"Version:",1]
[]
[null,"Issue Date:","2025-01-30"]

{"sheet":"Facility Info","index":1,"n_rows":22,"n_cols":11,"rows_kept":22,"cut":false,"hidden":false,"merged":[[4,0,17,8],[21,0,53,8],[4,10,13,13],[21,10,30,13]]}
[{"$f":"+'Cover Page'!$B$29","v":"Annual Performance Report 2024"},null,null,null,{"$f":"+'Cover Page'!$B$33","v":"Edmonton EFW"}]
[]
["Plant Description and Design",null,null,null,null,null,null,null,null,null,"Notes:"]
[]
["The EcoPark Energy Centre consists of 5 boilers, 5 turbines and 4 flue gas treatment streams before discharging out of two emission points at the stack. The boilers are a rolling grate technology. The flue gas treatment streams are equipped with Air Pollution Control (APC) measures that ensure that the plant conforms to the requirements set out in the Waste Incineration Directive 2000/76/EC (WID) in all respects. In practice, the pollutant abatement technologies applied will limit the emission concentrations to levels below the limit values.                                                                                                      \n\nThe heat from the process is utilised to generate potentially 40 MW of electricity, of which in excess of up to 80% is exported to the local electricity distribution network, thus saving valuable fossil fuel resources.  ",null,null,null,null,null,null,null,null,null,"Include summary of plant design, design capacity, no. of combustion lines, electrical and heat capacity and any other general information that describes the facility, its location and purpose "]
[]
[]
[]
[]
[]
[]
[]
[]
[]
[]
[]
[]
[]
[]
["Summary of Operational Processes and Procedures"]
[]
["Waste is taken from bunkers and fed into the boilers via cranes. The burning process significantly reduces the volume of waste. Following incineration ferrous and non-ferrous metals and Incinerator Bottom Ash (IBA) are the remaining products. The IBA is recycled utilising established methodology for use as a secondary aggregate e.g. for asphalt. The metals are also sent for recycling. The effect of reducing the volume by recovery of this material means that landfill void space is conserved. Equally as important, the use of secondary aggregates reduces the demand upon the quarrying of primary aggregates.\n\nThe EcoPark Energy Centre plant operates on a continuous 24-hour basis throughout the year, apart from partial planned and unplanned shutdowns. Incidents that cause unplanned shutdowns are dealt with in accordance with the appropriate planned actions. To offer maximum flexibility to the Local Authorities waste collection services, and to minimise local impact, particularly during peak traffic times, the facility is permitted to accept waste on a 24-hour basis.",null,null,null,null,null,null,null,null,null,"Include summary of key processes and procedures such as (but not limited to); waste reception, control rooms, grate, bed and boiler, energy & heat  generation, cooling systems, residue management, emission controls, health and safety systems, maintenance"]

{"sheet":"Contents","index":2,"n_rows":45,"n_cols":11,"rows_kept":45,"cut":false,"hidden":false,"merged":[[4,10,7,14],[8,1,8,6],[3,1,3,6],[4,1,4,6],[5,1,5,6],[6,1,6,6],[7,1,7,6],[21,1,21,6],[9,1,9,6],[10,1,10,6],[11,1,11,6],[13,1,13,6],[14,1,14,6],[15,1,15,6],[16,1,16,6],[17,1,17,6],[18,1,18,6],[19,1,19,6],[20,1,20,6],[12,1,12,6],[36,1,36,6],[22,1,22,6],[23,1,23,6],[24,1,24,6],[27,1,27,6],[28,1,28,6],[29,1,29,6],[30,1,30,6],[31,1,31,6],[32,1,32,6],[35,1,35,6],[44,0,47,9],[37,1,37,6],[38,1,38,6],[39,1,39,6],[40,1,40,6],[41,1,41,6],[42,1,42,6]]}
[{"$f":"+'Cover Page'!$B$29","v":"Annual Performance Report 2024"},null,null,null,{"$f":"+'Cover Page'!$B$33","v":"Edmonton EFW"}]
[]
["Contents",null,null,null,null,null,null,null,null,null,"Notes:"]
["Section","Subject",null,null,null,null,null,"Page ",null,null,"Section references and Page nos. to be inserted"]
[null,"Facility Information",null,null,null,null,null,null,null,null,"Sections and Subjects may require adjustment by individual operators to meet specific reporting requirements as defined in the sites Permit(s)"]
[null,"Operational Data"]
[null,"Operational Summary"]
[null,"Performance Form 1"]
[null,"Energy Form 1"]
[null,"Permit Compliance"]
[null,"Improvements"]
[null,"Public Liaison"]
[null,"Carbon dioxide and nitrous oxide emissions"]
[null,"Residue Quality "]
[null,"Emissions to Water"]
[null,"Emissions to Air (periodically monitored)"]
[null,"Emissions to Air (continuously monitored)"]
[null,"Hydrogen Chloride emissions"]
[null,"Sulphur Dioxide emissions"]
[null,"Oxides of Nitrogen emissions"]
[null,"Total Organic Carbon emissions"]
[null,"Particulate Matter emissions"]
[null,"Carbon Monoxide emissions"]
[null,"Ammonia emissions"]
[]
[]
["Version Control"]
["Section","Information",null,null,null,null,null,"Date"]
[]
[]
[]
[]
[]
[]
["Distribution"]
["Copy","Name, Role",null,null,null,null,null,"No."]
[]
[]
[]
[]
[]
[]
[]
[]
["This report is required under the Industrial Emissions Directive’s Article 55(2) requirements on reporting and public information on waste incineration plants and co-incineration plants, which require the operator to produce an annual report on the functioning and monitoring of the plant and make it available to the public. "]

{"sheet":"Operational Data","index":3,"n_rows":68,"n_cols":10,"rows_kept":68,"cut":false,"hidden":false,"merged":[[5,9,7,9],[52,0,56,0],[33,1,38,1],[3,1,3,2],[7,1,19,1],[23,1,26,1],[28,1,29,1],[9,9,20,9],[21,9,25,9]]}
[{"$f":"+'Cover Page'!$B$29","v":"Annual Performance Report 2024"},null,null,null,{"$f":"+'Cover Page'!$B$33","v":"Edmonton EFW"}]
[]
["Operational Data"]
["Plant Size","Max 750,000",null,"tonnes pa",null,"MWth",45.36,"MWe",null,"Notes:"]
["No. of combustion lines",5,null,"No. of Turbines:",null,5,null,null,null,"* - RDF to include SRF "]
[null,null,null,null,null,null,null,null,null,"** - Combusted tonnage = tonnes delivered in period + (tonnes in bunker at start of period – tonnes in bunker at end of period), or equivalent calculation depending on plant type"]
["Waste types received","Unit","Q1","Q2","Q3","Q4","Year Total","%"]
["Household / Local Authority","tonnes",120390,100879,81386,97931,{"$f":"SUM(C8:F8)","v":400586},{"$f":"IF(G8>0,G8/$G$18,\"-\")","v":0.79382813713771161}]
["Commercial & Industrial ",null,16,9,6,8,{"$f":"SUM(C9:F9)","v":39},7.728502081543228E-5,null,"*** - CHP plants only"]
["Hazardous ",null,0,0,0,0,0,"-",null,"**** Availability Definition: 'the availability of a line is to be calculated by the number of hours the line reported Continuously Monitored emission levels to the Regulator through the calendar year divided by the total number of hours in that year. \n\nThe overall plant availability is calculated as the Mean of all lines in the plant. For clarity this includes periods of abnormal operation.'  \n\nRationale: The primary function of an Energy from Waste facility is the disposal of waste. It follows therefore that the availability of a plant is determined by the period of time a facility spends undertaking this activity."]
["Clinical",null,75,73,72,73,293,5.8062848971593992E-4]
["Waste wood (biomass) ",null,0,0,0,0,0,"-"]
["Refuse Derived Fuel * - H'hold/LA",null,8432,26287,33274,33451,{"$f":"SUM(C13:F13)","v":101444},0.20102824747694134]
["Refuse Derived Fuel *  - C&I",null,1876,3,2,346,2227,4.4131728552812225E-3]
["Other [Dog Waste]",null,9,9,8,8,34,6.7376684813453774E-5]
["Other [Japanese Knotweed]",null,1,null,null,1,2,3.9633344007913991E-6]
["Other [Please specify]",null,0.6,null,null,null,0.6,1.1890003202374196E-6]
["Total waste received",null,{"$f":"SUM(C8:C17)","v":130799.6},{"$f":"SUM(D8:D17)","v":127260},{"$f":"SUM(E8:E17)","v":114748},{"$f":"SUM(F8:F17)","v":131818},504625.6]
["Rejected Waste ",null,3,3,3,3,{"$f":"SUM(C19:F19)","v":12},{"$f":"IF(G19>0,G19/$G$18,\"-\")","v":2.3780006404748394E-5}]
["Unprocessed waste transferred out",null,null,null,null,null,{"$f":"SUM(C20:F20)","v":0},{"$f":"IF(G20>0,G20/$G$18,\"-\")","v":"-"}]
["Total waste combusted **",null,130190,118981,115617,130761,{"$f":"SUM(C21:F21)","v":495549}]
[null,null,null,null,null,null,null,null,null,"Password for protected cells\nA password has been set to prevent accidental  editing of cells with formulae. \nIf you still need to make an edit for some reason then the password = 1234"]
["Energy Usage / Export","Unit","Q1","Q2","Q3","Q4","Year Total","KWh/te"]
["Power Generated","MWh",66593,61210,59187,65770,{"$f":"SUM(C24:F24)","v":252760},{"$f":"IF(G24>0,G24*1000/$G$21,\"-\")","v":510.0605590970822}]
["Power Exported",null,56564,50783,49666,55393,{"$f":"SUM(C25:F25)","v":212406},{"$f":"IF(G25>0,G25*1000/$G$21,\"-\")","v":428.62764328048286}]
["Power Used on site",null,{"$f":"C24-C25","v":10029},{"$f":"D24-D25","v":10427},{"$f":"E24-E25","v":9521},{"$f":"F24-F25","v":10377},{"$f":"SUM(C26:F26)","v":40354},{"$f":"IF(G26>0,G26*1000/$G$21,\"-\")","v":81.432915816599362}]
["Power Imported",null,6,3,0,23,32,{"$f":"IF(G27>0,G27*1000/$G$21,\"-\")","v":6.4574845272616838E-2}]
["Parasitic Load","%",{"$f":"IF(C24>0,1-C25/(C24+C27),\"-\")","v":0.15067793810717878},{"$f":"IF(D24>0,1-D25/(D24+D27),\"-\")","v":0.17038864293532419},{"$f":"IF(E24>0,1-E25/(E24+E27),\"-\")","v":0.16086302735397973},{"$f":"IF(F24>0,1-F25/(F24+F27),\"-\")","v":0.15807152736613317},{"$f":"IF(G24>0,1-G25/(G24+G27),\"-\")","v":0.15975980252539634}]
["Thermal Energy Produced ***","MWh","-","-","-","-",{"$f":"SUM(C29:F29)","v":0},{"$f":"IF(G29>0,G29*1000/$G$21,\"-\")","v":"-"}]
["Thermal Energy Exported ***",null,"-","-","-","-",0,{"$f":"IF(G30>0,G30*1000/$G$21,\"-\")","v":"-"}]
["R1 value (if applicable)","R1"]
[]
["Waste Disposal & Recovery","Unit","Q1","Q2","Q3","Q4","Year Total","% inputs"]
["APC Residues - produced","tonnes",3857,3758,3501,3962,{"$f":"SUM(C34:F34)","v":15078},{"$f":"IF(G34>0,G34/$G$21,\"-\")","v":3.0426859906891146E-2}]
["IBA - produced",null,22568,24763,22572,21979,91882,{"$f":"IF(G35>0,G35/$G$21,\"-\")","v":0.18541456041683063}]
["Metals recycling",null,781,655,2962,3198,{"$f":"SUM(C36:F36)","v":7596},1.5328453896587421E-2]
["Other",null,0,0,0,0,{"$f":"SUM(C37:F37)","v":0},"-"]
["Other",null,0,0,0,0,0,"-"]
["Other",null,0,0,0,0,0,"-"]
[]
["Raw Material Usage","Unit","Q1","Q2","Q3","Q4","Year Total","kg or Ltr /te"]
["Mains Water","ltrs",44396000,42017000,42957000,51547000,{"$f":"SUM(C42:F42)","v":180917000},{"$f":"IF(G42>0,G42/$G$21,\"-\")","v":365.08397756831312}]
["Other Water","ltrs",126465000,145673000,187737000,203762000,663637000,{"$f":"IF(G43>0,G43/$G$21,\"-\")","v":1339.1955185057382}]
["Ammonia","kgs","-","-","-","-",0,"-"]
["Urea","kgs",215000,221000,238000,239000,{"$f":"SUM(C45:F45)","v":913000},{"$f":"IF(G45>0,G45/$G$21,\"-\")","v":1.8424010541843492}]
["Activated Carbon","kgs",60000,192000,40400,122000,414400,0.83624424628038796]
["Lime / hydrated lime","kgs",1147000,1374000,1394000,1298000,5213000,{"$f":"IF(G47>0,G47/$G$21,\"-\")","v":10.519645887692237}]
["Fuel oil","ltrs","-","-","-","-",0,"-"]
["Gas","m3",525850,402420,342430,546731,1817431]
["Other",null,null,null,null,null,0]
[]
["Summary ","Line/Unit","Q1","Q2","Q3","Q4","Year Total",null,"Hrs in year "]
["Availability of waste combustion by line, hrs ****",{"$f":"+B5","v":5},1983.5,1950.5,1126.5,2082.5,{"$f":"SUM(C53:F53)","v":7143},{"$f":"+G53/$I$53","v":0.81541095890410964},8760,"Change this figure to 8784 in a leap year"]
[null,2,1954.5,1757,2008,2079,7798.5,{"$f":"+G54/$I$53","v":0.89023972602739732}]
[null,3,2164,2089,1245,1833,7331,0.83687214611872152]
[null,4,1845,1600,2200,1872,{"$f":"SUM(C56:F56)","v":7517},0.85810502283105028]
[null,5,1947,1588,2108,2029,{"$f":"SUM(C57:F57)","v":7672},0.8757990867579909]
["Overall Availability, mean avg. of all lines, hrs",null,null,null,null,null,{"$f":"AVERAGE(G53:G57)","v":7492.3},0.85528538812785393]
["Hours of turbine operations, hrs",1,2028,2126,2208,2063,8425,0.96175799086757996]
["Hours of turbine operations, hrs",2,1692,2184,2208,1944,8028,0.91643835616438352]
["Hours of turbine operations, hrs",3,2179,1593,0,1056,4828,0.5511415525114155]
["Hours of turbine operations, hrs",4,1832,1626,2114,2085,7657,0.87408675799086755]
["Hours of turbine operations, hrs",5,607,566,220,1206,2599,0.29668949771689496]
["Hours of heat / steam export",null,9998,9030,8747,10102,37877,{"$f":"IF(B64>0,G60/I53,\"n/a\")","v":"n/a"}]
["Net Calorific Value of waste","MJ/kg",8.5500000000000007,null,11.24]
["Abnormal Events","qty.",0,0,0,1,1,{"$f":"IF(G66>0,\"yes\",\"no\")","v":"yes"}]
["Abnormal operation","hours",null,null,null,0.5,0.5,{"$f":"+(G67)/I53","v":5.7077625570776254E-5}]
["Permit Breaches","qty.",7,9,17,5,38,{"$f":"IF(G68>0,\"yes\",\"no\")","v":"yes"}]

{"sheet":"Operational Summary","index":4,"n_rows":110,"n_cols":11,"rows_kept":110,"cut":false,"hidden":false,"merged":[[2,0,2,8],[109,1,109,8],[4,0,26,8],[30,0,51,8],[4,10,13,13],[30,10,39,13],[54,1,54,8],[53,1,53,8],[54,10,63,13],[59,1,59,8],[55,1,55,8],[56,1,56,8],[57,1,57,8],[58,1,58,8],[60,1,60,8],[61,1,61,8],[62,1,62,8],[63,1,63,8],[64,1,64,8],[65,1,65,8],[66,1,66,8],[67,1,67,8],[68,1,68,8],[69,1,69,8],[70,1,70,8],[71,1,71,8],[72,1,72,8],[73,1,73,8],[74,1,74,8],[75,1,75,8],[76,1,76,8],[77,1,77,8],[78,1,78,8],[79,1,79,8],[80,1,80,8],[81,1,81,8],[82,1,82,8],[83,1,83,8],[84,1,84,8],[85,1,85,8],[86,1,86,8],[87,1,87,8],[88,1,88,8],[89,1,89,8],[90,1,90,8],[91,1,91,8],[92,1,92,8],[93,1,93,8],[94,1,94,8],[95,1,95,8],[96,1,96,8],[97,1,97,8],[98,1,98,8],[99,1,99,8],[100,1,100,8],[101,1,101,8],[102,1,102,8],[103,1,103,8],[107,1,107,8],[108,1,108,8],[104,1,104,8],[105,1,105,8],[106,1,106,8]]}
[{"$f":"+'Cover Page'!$B$29","v":"Annual Performance Report 2024"},null,null,null,{"$f":"+'Cover Page'!$B$33","v":"Edmonton EFW"}]
[]
["Summary of Plant Operations and Maintenance during the reporting year",null,null,null,null,null,null,null,null,null,"Notes:"]
[]
["LEL carry out annual Boiler, Turbine and Flue Gas Treatment (FGT) outages to comply with Statutory inspections and testing.\nEach Boiler and FGT's are taken off line, cleaned, inspected visually and by means of Non-Destructive Testing (NDT).\nBoiler tubes are replaced with new where identified to be below standards and all wear parts replaced where required to ensure reliability and reduce downtime.\nTurbines are taken off for survey every four years (one each year) to replace and repair the Turbine blades, steam paths, pumps, motors and bearings to achieve the best efficiency possible.\nDuring the Turbine surveys all mechanical and electrical components i.e. pumps, motors, valves etc are inspected, tested and repaired/replaced as required.\nTA3 run hours low due to Major Inspection",null,null,null,null,null,null,null,null,null,"Include summary of key operational and/or maintenance activity undertaken in the year, such as any major component upgrades and/or replacements "]
[]
[]
[]
[]
[]
[]
[]
[]
[]
[]
[]
[]
[]
[]
[]
[]
[]
[]
[]
[]
[]
[]
[]
["Summary of Residue Handling for the reporting year"]
[]
["All IBA stored on site for the 48 hour cooling period and then sent to Fortis for processing.\nAll Fly Ash And APCr residues are pnematically conveyed to one of two residue silos, loaded into tankers for precessing at a Castle Environmental facility. ",null,null,null,null,null,null,null,null,null,"Include in here a summary of residue handling regimes and destinations "]
[]
[]
[]
[]
[]
[]
[]
[]
[]
[]
[]
[]
[]
[]
[]
[]
[]
[]
[]
[]
[]
[]
[{"$f":"+'Cover Page'!C39","v":2024},"Plant shut-downs"]
["Date","Reason for shut-down",null,null,null,null,null,null,null,"Boiler 4 ","Provide a very brief reason for plant shut-down e.g. \"Shut-down prior to major outage\"; \"Emergency shut-down due to boiler tube leak\"\n\nThere is no need to include periods of hot-standby here (e.g. to clear feed chute hopper blockages).\n\nFor clinical waste incinerators which require regular shut-downs for boiler cleaning, there is no need to record these here. "]
["2024-01-02","Controlled shut down - Offline for tube repairs",null,null,null,null,null,null,null,"Boiler 5"]
["2024-01-08","Controlled shut down - Offline for tube repairs",null,null,null,null,null,null,null,"Boiler 1 "]
["2024-01-10","Controlled shut down - Tube Leaks",null,null,null,null,null,null,null,"Boiler 5 "]
["2024-01-14","Controlled shut down - Economiser clean",null,null,null,null,null,null,null,"Boiler 4 "]
["2024-02-01","Controlled shut down - Tube leaks",null,null,null,null,null,null,null,"Boiler 2 "]
["2024-02-21","Controlled shut down - Tube leaks",null,null,null,null,null,null,null,"Boiler 1 "]
["2024-03-05","Controlled shut down - Superheater tube leak",null,null,null,null,null,null,null,"Boiler 2 "]
["2024-03-27","Controlled shut down - High Vibration PA fan",null,null,null,null,null,null,null,"Boiler 2 "]
["2024-04-02","Planned shut down - Annual Outage",null,null,null,null,null,null,null,"Boiler 1 "]
["2024-04-08","Planned shut down - Precip inspection, clean and repairs",null,null,null,null,null,null,null,"Boiler 3"]
["2024-04-15","Controlled shut down - Roller Grate 4 - repairs required, damaged segments.",null,null,null,null,null,null,null,"Boiler 5 "]
["2024-04-24","Controlled shut down - Tube Leaks",null,null,null,null,null,null,null,"Boiler 5 "]
["2024-04-25","Controlled shut down - Feeder Ram jamming.",null,null,null,null,null,null,null,"Boiler 4 "]
["2024-04-26","Planned shut down - Annual Outage",null,null,null,null,null,null,null,"Boiler 3"]
["2024-05-05","Controlled shut down - Roller Grates - Repairs required, damaged segments",null,null,null,null,null,null,null,"Boiler 5 "]
["2024-05-20","Controlled shut down - Riddling Conveyor power issue",null,null,null,null,null,null,null,"Boiler 1 "]
["2024-05-22","Controlled shut down - Precip repairs",null,null,null,null,null,null,null,"Boiler 4 "]
["2024-05-26","Controlled shut down - Superheater outlet pressure transmitter replacement",null,null,null,null,null,null,null,"Boiler 3"]
["2024-05-28","Planned shut down - PA fan bearing works",null,null,null,null,null,null,null,"Boiler 1 "]
["2024-05-31","Controlled shut down - Precip repairs",null,null,null,null,null,null,null,"Boiler 3"]
["2024-06-03","Planned shut down - Valmet Feeder RAM works",null,null,null,null,null,null,null,"Boiler 3"]
["2024-06-06","Controlled shut down - AP03 Communication Module Failed ",null,null,null,null,null,null,null,"Boiler 2"]
["2024-06-12","Planned shut down - Annual Outage",null,null,null,null,null,null,null,"Boiler 2"]
["2024-07-05","Controlled shut down - No Denox Control",null,null,null,null,null,null,null,"Boiler 5 "]
["2024-07-07","Controlled shut down - PRV replacement",null,null,null,null,null,null,null,"Boiler 3"]
["2024-07-08","Emergency shut down - ID Fan Tripped",null,null,null,null,null,null,null,"Boiler 2"]
["2024-07-09","Controlled shut down - Hydrostep repairs",null,null,null,null,null,null,null,"Boiler 5 "]
["2024-07-10","Controlled shut down - Bursting disc rupture.",null,null,null,null,null,null,null,"Boiler 1"]
["2024-07-11","Planned shut down - Annual Outage",null,null,null,null,null,null,null,"Boiler 3"]
["2024-07-11","Controlled shut down - Superheater tube leak",null,null,null,null,null,null,null,"Boiler 3"]
["2024-08-16","Controlled shut down - PA Fan Inverter Failure",null,null,null,null,null,null,null,"Boiler 2 "]
["2024-08-17","Controlled shut down - Low Lime Stocks",null,null,null,null,null,null,null,"Boiler 2 "]
["2024-08-22","Controlled shut down - Steam leak repairs",null,null,null,null,null,null,null,"Boiler 1 "]
["2024-08-25","Controlled shut down - Gate seal failure",null,null,null,null,null,null,null,"Boiler 3"]
["2024-08-27","Planned shut down - Annual Outage",null,null,null,null,null,null,null,"Boiler 4"]
["2024-09-07","Controlled shut down - Riddling conveyor idler seized.",null,null,null,null,null,null,null,"Boiler 1 "]
["2024-09-14","Controlled shut down - Bursting disc rupture.",null,null,null,null,null,null,null,"Boiler 1"]
["2024-09-16","Controlled shut down - Roller grate repair",null,null,null,null,null,null,null,"Boiler 5"]
["2024-10-06","Controlled shut down - Q/Bath Jammed, numerous bent buckets. R/G2 segments missing, refractory fallen in GH.",null,null,null,null,null,null,null,"Boiler 3"]
["2024-10-06","Controlled shut down - Riddling conveyor jammed solid.",null,null,null,null,null,null,null,"Boiler 2"]
["2024-10-15","Controlled shut down - Off waste for T/A4  rotor trim balancing",null,null,null,null,null,null,null,"Boiler 1"]
["2024-10-21","Controlled shut down - Roller repairs",null,null,null,null,null,null,null,"Boiler 3"]
["2024-10-29","Controlled shut down - Sootblower & hyrastep repairs",null,null,null,null,null,null,null,"Boiler 1"]
["2024-11-10","Emergency shut down - Tripped when taking EEBT2 OOS (request from UKPN due to cable low oil pressure)",null,null,null,null,null,null,null,"Boiler 1 "]
["2024-11-20","Emergency shut down - Tripped when taking EEBT2 OOS (request from UKPN due to cable low oil pressure)",null,null,null,null,null,null,null,"Boiler 2 "]
["2024-11-20","Emergency shut down - Tripped when taking EEBT2 OOS (request from UKPN due to cable low oil pressure)",null,null,null,null,null,null,null,"Boiler 3"]
["2024-11-20","Emergency shut down - Tripped when taking EEBT2 OOS (request from UKPN due to cable low oil pressure)",null,null,null,null,null,null,null,"Boiler 4"]
["2024-11-20","Emergency shut down - Tripped when taking EEBT2 OOS (request from UKPN due to cable low oil pressure)",null,null,null,null,null,null,null,"Boiler 5"]
["2024-11-20","Controlled shutdown - PA Fan experiancing high virbration - bearing or  balance weight issue. Rollergrate No2 segments missing.",null,null,null,null,null,null,null,"Boiler 4 "]
["2024-11-29","Emergency shut down - PA fan inverter burnt out. Drop leg Atmospheric v/v failure on RTS delayed",null,null,null,null,null,null,null,"Boiler 2"]
["2024-12-03","Controlled shut down - No 2 R/Grate segment.",null,null,null,null,null,null,null,"Boiler 4"]
["2024-12-06","Controlled shut down - Riddling Conveyor failed - two bent scrapper bars replaced ",null,null,null,null,null,null,null,"Boiler 4"]
["2024-12-08","Controlled shut down - team leak repairs, bottom furnace slope tubes. Then issue with Feeder ram mod.",null,null,null,null,null,null,null,"Boiler 3"]
["2024-12-11","Controlled shut down -  North Boiler bank tube failure ",null,null,null,null,null,null,null,"Boiler 3 "]
["2024-12-16","Controlled shut down - Rupture disc burst",null,null,null,null,null,null,null,"Boiler 2"]

{"sheet":"Perf. Form 1","index":5,"n_rows":54,"n_cols":10,"rows_kept":54,"cut":false,"hidden":false,"merged":[[9,0,9,9],[10,0,10,1],[10,2,10,3],[10,4,10,5],[10,6,10,7],[10,8,10,9],[2,0,2,4],[2,6,2,8],[3,1,3,4],[5,3,5,4],[5,6,5,7],[8,0,8,1],[8,2,8,3],[8,4,8,5],[8,6,8,7],[8,8,8,9],[11,0,11,1],[11,2,11,3],[11,4,11,5],[11,6,11,7],[11,8,11,9],[12,0,12,1],[12,2,12,3],[12,4,12,5],[12,6,12,7],[12,8,12,9],[15,0,15,1],[15,2,15,3],[15,4,15,5],[15,6,15,7],[15,8,15,9],[16,0,16,9],[13,0,13,1],[13,2,13,3],[13,4,13,5],[13,6,13,7],[13,8,13,9],[14,0,14,3],[14,4,14,5],[14,6,14,7],[14,8,14,9],[17,0,17,1],[17,2,17,3],[17,4,17,5],[17,6,17,7],[17,8,17,9],[18,0,18,1],[18,2,18,3],[18,4,18,5],[18,6,18,7],[18,8,18,9],[19,0,19,1],[19,2,19,3],[19,4,19,5],[19,6,19,7],[19,8,19,9],[20,0,20,1],[20,2,20,3],[20,4,20,5],[20,6,20,7],[20,8,20,9],[21,0,21,1],[21,2,21,3],[21,4,21,5],[21,6,21,7],[21,8,21,9],[22,0,22,3],[22,4,22,5],[22,6,22,7],[22,8,22,9],[31,0,31,3],[31,7,31,8],[32,0,32,3],[32,4,32,5],[32,7,32,8],[33,0,33,3],[33,4,33,5],[33,7,33,8],[23,0,23,3],[23,4,23,5],[23,6,23,7],[23,8,23,9],[25,0,25,9],[26,0,28,9],[36,0,36,3],[36,4,36,5],[36,7,36,8],[37,0,37,3],[37,4,37,5],[37,7,37,8],[34,0,34,3],[34,4,34,5],[34,7,34,8],[35,0,35,3],[35,4,35,5],[35,7,35,8],[47,0,47,1],[49,0,49,9],[50,0,51,9],[38,0,38,9],[39,0,40,9],[43,0,43,1],[43,2,43,9],[45,0,45,1],[46,0,46,1]]}
[{"$f":"+'Cover Page'!C39","v":2024}," Annual Reporting Performance Form 1"]
[]
[{"$f":"+'Cover Page'!B31","v":"Permit EPR/YP3033BE"},null,null,null,null,"Operator: ",{"$f":"+'Cover Page'!B37","v":"LondonEnergy Ltd"}]
["Facility:",{"$f":"+'Cover Page'!B33:I33","v":"Edmonton EFW"},null,null,null,"Form:","Performance 1"]
[]
["Reporting  Period from: ",null,null,"2024-01-01",null,"to:","2024-12-31"]
[]
[{"$f":"+A1","v":2024},"Annual Reporting of Waste Disposal and Recovery"]
["Waste Description",null,"Disposal Route(s)",null,"Disposal Tonnes",null,"Recovery Tonnes",null,"% / tonne of waste incinerated"]
["1) Hazardous Wastes"]
["APC Residues",null,"D09",null,11715,null,null,null,{"$f":"IF((E11+G11)>0,(E11+G11)/'Operational Data'!$G$21, \"-\")","v":2.364044726152207E-2}]
["IBA",null,null,null,null,null,null,null,{"$f":"IF((E12+G12)>0,(E12+G12)/'Operational Data'!$G$21, \"-\")","v":"-"}]
[null,null,null,null,null,null,null,null,{"$f":"IF((E13+G13)>0,(E13+G13)/'Operational Data'!$G$21, \"-\")","v":"-"}]
[null,null,null,null,null,null,null,null,{"$f":"IF((E14+G14)>0,(E14+G14)/'Operational Data'!$G$21, \"-\")","v":"-"}]
["Total Hazardous Waste",null,null,null,{"$f":"SUM(E11:F14)","v":11715},null,{"$f":"SUM(G11:H14)","v":0},null,{"$f":"IF((E15+G15)>0,(E15+G15)/'Operational Data'!$G$21, \"-\")","v":2.364044726152207E-2}]
[]
["2) Non-Hazardous Wastes"]
["IBA",null,"R05",null,null,null,93076,null,{"$f":"IF((E18+G18)>0,(E18+G18)/'Operational Data'!$G$21, \"-\")","v":0.18782400933106513}]
["Ferrous Metal",null,"R04",null,null,null,5596,null,{"$f":"IF((E19+G19)>0,(E19+G19)/'Operational Data'!$G$21, \"-\")","v":1.1292526067048869E-2}]
["Process Water",null,null,null,null,null,null,null,{"$f":"IF((E20+G20)>0,(E20+G20)/'Operational Data'!$G$21, \"-\")","v":"-"}]
[null,null,null,null,null,null,null,null,{"$f":"IF((E21+G21)>0,(E21+G21)/'Operational Data'!$G$21, \"-\")","v":"-"}]
[null,null,null,null,null,null,null,null,{"$f":"IF((E22+G22)>0,(E22+G22)/'Operational Data'!$G$21, \"-\")","v":"-"}]
["Total Non-Hazardous Waste",null,null,null,{"$f":"SUM(E18:F22)","v":0},null,{"$f":"SUM(G18:H22)","v":98672},null,{"$f":"IF((E23+G23)>0,(E23+G23)/'Operational Data'!$G$21, \"-\")","v":0.199116535398114}]
["TOTAL WASTE",null,null,null,{"$f":"+E23+E15","v":11715},null,{"$f":"+G23+G15","v":98672},null,{"$f":"IF((E24+G24)>0,(E24+G24)/'Operational Data'!$G$21, \"-\")","v":0.22275698265963609}]
[]
["Operator’s comments :"]
[]
[]
[]
[]
[{"$f":"+A1","v":2024},"Annual Reporting of Water and Other Raw Material Usage"]
["Raw Material",null,null,null,"Usage",null,"Unit","Specific Usage",null,"Unit"]
["Mains Water",null,null,null,{"$f":"+'Operational Data'!G42/1000","v":180917},null,"m3",{"$f":"IF(E33>0,E33/'Operational Data'!$G$21,\"-\")","v":0.36508397756831312},null,"m3/te"]
["Total Water",null,null,null,{"$f":"+'Operational Data'!G43+'Operational Data'!G42/1000","v":663817917},null,"m3",{"$f":"IF(E34>0,E34/'Operational Data'!$G$21,\"-\")","v":1339.5606024833064},null,"m3/te"]
["Urea / Ammonia",null,null,null,{"$f":"+'Operational Data'!G45","v":913000},null,"kg",{"$f":"IF(E35>0,E35/'Operational Data'!$G$21,\"-\")","v":1.8424010541843492},null,"kg/te"]
["Activated Carbon",null,null,null,{"$f":"+'Operational Data'!G46","v":414400},null,"kg",{"$f":"IF(E36>0,E36/'Operational Data'!$G$21,\"-\")","v":0.83624424628038796},null,"kg/te"]
["Lime / hydrated lime / Sodium Bicarb.",null,null,null,{"$f":"+'Operational Data'!G47","v":5213000},null,"kg",{"$f":"IF(E37>0,E37/'Operational Data'!$G$21,\"-\")","v":10.519645887692237},null,"kg/te"]
[]
["Operator’s comments :"]
[]
[]
[]
[{"$f":"+A31","v":2024},"Annual Reporting of other performance indicators "]
["Parameter",null,"Results by Line"]
[null,null,"A1","A2","A3","A4","A5",null,"Turbine 1","Turbine 2"]
["Operating hours for the year, hours",null,8781,8778]
["Number of periods of abnormal operation, qty."]
["Cumulative hours of abnormal operation for this year, hours"]
[]
["Operator’s comments :"]
[]
[]
[]
["Signed: ","H. Barratt",null,null,null,null,"Date:","30.01.25"]

{"sheet":"Energy Form 1","index":6,"n_rows":29,"n_cols":8,"rows_kept":29,"cut":false,"hidden":false,"merged":[[2,6,2,8],[4,1,4,4],[6,3,6,4],[6,6,6,7],[8,0,8,2],[8,3,8,4],[8,6,8,8],[9,0,9,2],[9,3,9,4],[9,6,9,8],[10,0,10,2],[10,3,10,4],[10,6,10,8],[11,0,11,2],[11,3,11,4],[11,6,11,8],[12,0,12,2],[12,3,12,4],[12,6,12,8],[13,0,13,2],[13,3,13,4],[13,6,13,8],[14,0,14,2],[14,3,14,4],[14,6,14,8],[15,0,15,2],[15,3,15,4],[15,6,15,8],[17,0,17,8],[18,0,24,8]]}
[{"$f":"+'Cover Page'!C39","v":2024}," Annual Reporting of Energy Usage/Export"]
[]
[{"$f":"+'Cover Page'!B31","v":"Permit EPR/YP3033BE"},null,null,null,null,"Operator: ",{"$f":"+'Cover Page'!B37","v":"LondonEnergy Ltd"}]
[]
["Facility:",{"$f":"+'Cover Page'!B33:I33","v":"Edmonton EFW"},null,null,null,"Form:","Energy 1"]
[]
["Reporting  Period from: ",null,null,{"$f":"+'Perf. Form 1'!D6:E6","v":"2024-01-01"},null,"to:",{"$f":"+'Perf. Form 1'!G6:H6","v":"2024-12-31"}]
[]
["Energy Source",null,null,"Energy Usage",null,"Unit","Specific Usage (KWh/tonne incinerated"]
["Electricity Produced",null,null,{"$f":"+'Operational Data'!G24","v":252760},null,"MWh",{"$f":"+'Operational Data'!H24","v":510.0605590970822}]
["Electricity Imported   ",null,null,{"$f":"+'Operational Data'!G27","v":32},null,"MWh",{"$f":"+'Operational Data'!H27","v":6.4574845272616838E-2}]
["Electricity Exported",null,null,{"$f":"+'Operational Data'!G25","v":212406},null,"MWh",{"$f":"+'Operational Data'!H25","v":428.62764328048286}]
["Gas Oil",null,null,null,null,"tonnes"]
["Steam/hot water exported",null,null,{"$f":"+'Operational Data'!G30","v":0},null,"GWh",{"$f":"+'Operational Data'!H30","v":"-"}]
[]
[]
[]
["Operator’s comments :"]
[]
[]
[]
[]
[]
[]
[]
[]
[]
[]
["Signed: ","H.Barratt",null,null,null,null,"Date:","30.01.24"]

{"sheet":"Permit Compliance","index":7,"n_rows":62,"n_cols":12,"rows_kept":62,"cut":false,"hidden":false,"merged":[[7,0,7,1],[7,2,7,8],[8,0,8,1],[8,2,8,4],[8,5,8,8],[67,4,67,8],[9,0,9,1],[9,2,9,4],[9,5,9,8],[10,0,10,1],[10,2,10,4],[10,5,10,8],[11,0,11,1],[11,2,11,4],[11,5,11,8],[12,0,12,1],[12,2,12,4],[12,5,12,8],[13,0,13,1],[13,2,13,4],[13,5,13,8],[66,1,66,3],[66,4,66,6],[66,7,66,9],[8,11,20,11],[60,0,60,10],[18,0,18,10],[22,1,22,2],[49,1,49,2],[14,0,14,1],[14,2,14,4],[14,5,14,8],[15,0,15,1],[16,2,16,4],[16,5,16,8],[15,2,15,4],[15,5,15,8],[16,0,16,1],[53,1,53,2],[57,1,57,2],[58,0,58,8],[19,7,19,8],[19,1,19,2],[19,3,19,5],[21,3,21,5],[22,3,22,5],[49,3,49,5],[53,3,53,5],[65,1,65,3],[65,4,65,6],[65,7,65,9],[61,1,61,3],[61,4,61,6],[61,7,61,9],[62,1,62,3],[62,4,62,6],[62,7,62,9],[63,1,63,3],[63,4,63,6],[63,7,63,9],[64,1,64,3],[64,4,64,6],[64,7,64,9],[57,3,57,5],[21,1,21,2],[50,1,50,2],[23,1,23,2],[24,1,24,2],[25,1,25,2],[31,1,31,2],[32,1,32,2],[33,1,33,2],[34,1,34,2],[35,1,35,2],[26,1,26,2],[27,1,27,2],[28,1,28,2],[29,1,29,2],[30,1,30,2],[32,3,32,5],[33,3,33,5],[45,1,45,2],[36,1,36,2],[37,1,37,2],[38,1,38,2],[39,1,39,2],[40,1,40,2],[23,3,23,5],[24,3,24,5],[25,3,25,5],[26,3,26,5],[27,3,27,5],[28,3,28,5],[29,3,29,5],[30,3,30,5],[31,3,31,5],[41,1,41,2],[42,1,42,2],[43,1,43,2],[44,1,44,2],[35,3,35,5],[36,3,36,5],[37,3,37,5],[38,3,38,5],[39,3,39,5],[32,6,40,6],[43,6,45,6],[47,6,52,6],[52,3,52,5],[45,3,45,5],[46,3,46,5],[47,3,47,5],[48,3,48,5],[50,3,50,5],[40,3,40,5],[41,3,41,5],[42,3,42,5],[43,3,43,5],[44,3,44,5],[34,3,34,5],[54,3,54,5],[55,3,55,5],[56,3,56,5],[55,1,55,2],[56,1,56,2],[51,3,51,5],[52,1,52,2],[54,1,54,2],[46,1,46,2],[47,1,47,2],[48,1,48,2],[51,1,51,2]]}
[{"$f":"+'Cover Page'!$B$29","v":"Annual Performance Report 2024"},null,null,null,{"$f":"+'Cover Page'!$B$33","v":"Edmonton EFW"}]
[]
["Summary of Permit Compliance"]
[]
["Compliance with permit limits for continuously monitored pollutants"]
[]
["The plant met its emission limits as shown in the table below:"]
["Substance",null,"Percentage time compliant during operationNote 1",null,null,null,null,null,null,null,null,"Notes:"]
[null,null,"Half-hourly limit",null,null,"Daily limit",null,null,null,null,null,"Note 1: Please report to 2 decimal places, i.e. xx.xx%\n\nNote 2: Please enter into this table any permit non-compliances that the EA has given a CCS score for. Please also enter any other non-compliances which you have notified to the EA (e.g. ELV exceedances) but which have not yet been assessed by the EA. There is no need to enter any notifications which were subsequently assessed by the EA not to be permit breaches.  \n\nNote 3: Please enter information here (rather than just referencing the notifications that were sent to the EA) including where relevant the incineration line reference, pollutant and value of the measured result for any ELV exceedances.   \n\n"]
["Particulates",null,0.99990000000000001,null,null,1]
["Oxides of nitrogen",null,1,null,null,0.99729999999999996]
["Sulphur dioxide",null,0.99990000000000001,null,null,1]
["Carbon monoxide",null,0.99819999999999998,null,null,0.98629999999999995]
["Total organic carbon",null,0.99790000000000001,null,null,1]
["Hydrogen chloride",null,0.99990000000000001,null,null,0.99729999999999996]
["Hydrogen fluoride",null,"NA",null,null,"NA"]
[]
[]
["Summary of non-compliances under the permit Note 2"]
["Date","Summary of non-compliance Note 3",null,"Reason ",null,null,"Measures taken to prevent reoccurrence","CCS score if applicable*"]
[null,null,null,null,null,null,null,"Impact","Root cause"]
["2024-01-07","YP3033BE_EP_2024_AE001 - Short-term TOC breach caused by a gas bottle explosion. 27.0mg/Nm3-C",null,"Gas bottle explosion",null,null,"Track explosion activity to gather data on the extent of challenge. Encourage and support the collection and segregation of gas canisters at recycling centres. "]
["2024-01-14","YP3033BE_EP_2024_AE003 - Multiple TOC and CO breaches",null,"Loss of boiler communication system",null,null,"Faulty units repaired, critical spares also brought in. Procedure on response to loss of communication updated."]
["2024-01-25","YP3033BE_EP_2024_AE005 Multiple TOC and CO breaches A2 Stack",null,"ID fan trip as a result of electrical work elsewhere"]
["2024-02-08","YP3033BE_EP_2024_AE006 - CO 95th%ile breach 200mg/Nm3-C",null,"Power supply failure",null,null,"Preventative maintenance undertaken to ensure power supply does not fail again."]
["2024-03-08","YP3033BE_EP_2024_AE008 - CO Daily and 95th%ile breach A1 Stack. ",null,"Tube leak and explosions"]
["2024-03-18","YP3033BE_EP_2024_AE009 - 1 x Short term TOC A2 stack, 24.1 mg/Nm3-C",null,"Gas burner tripped while bringing boiler offline",null,null,"Upgrades to sequencer on boiler 4 holding burner"]
["2024-04-21","YP3033BE_EP_2024_AE010 - 1 x Short term TOC A2 stack, 20.9 mg/Nm3-C",null,"Gas bottle explosion",null,null,"Collaboration with ops team and NLWA to tackle challenge with non-conforming waste in municipal waste"]
["2024-04-23","YP3033BE_EP_2024_AE011 - Daily average A2 stack, 183.35 mg/Nm3-C",null,"Carbamine dosing issue",null,null,"Create a carbamine tank clean PPM. Standby carbamine will be used while main tank is cleaned. Modification to carbamine pipework to be completed. "]
["2024-04-23","YP3033BE_EP_2024_AE012 - 1 x Short term TOC A1 stack, 44 mg/Nm3-C",null,"Gas bottle explosion",null,null,"Data collection and analysis on explosions"]
["2024-04-26","YP3033BE_EP_2024_AE013 - CO Daily and 95th%ile",null,"Feeder ram trip",null,null,"More frequent inspections of the parts that failed. "]
["2024-05-17","YP3033BE_EP_2024_AE014 - TOC Short Term Exceedance A2 Stack 22.4mg/Nm3-C",null,"Burner issues",null,null,"Burner specialist brought in to identify causes"]
["2024-06-10","YP3033BE_EP_2024_AE015 - TOC Short Term Exceedance A1 Stack 20.1mg/Nm3-C",null,"Gas bottle explosion",null,null,"Ongoing data tracking and analysis into explosions to identify patterns in their occurrence to explore if there are any preventative options."]
["2024-06-16","YP3033BE_EP_2024_AE016 - TOC Short Term Exceedance A2 Stack 20.8mg/Nm3-C",null,"Gas bottle explosion"]
["2024-06-23","YP3033BE_EP_2024_AE017 - TOC Short Term Exceedance A2 Stack 24.9mg/Nm3-C",null,"Gas bottle explosion"]
["2024-06-25","YP3033BE_EP_2024_AE018 - TOC Short Term Exceedance A2 Stack 35.2mg/Nm3-C",null,"Gas bottle explosion"]
["2024-07-01","YP3033BE_EP_2024_AE019 - TOC Short Term Exceedance A2 Stack 20.3mg/Nm3-C",null,"Gas bottle explosion"]
["2024-07-03","YP3033BE_EP_2024_AE020 - TOC Short Term Exceedance A1 Stack 23.7mg/Nm3-C",null,"Gas bottle explosion"]
["14.07.2024","YP3033BE_EP_2024_AE022 - TOC Short Term Exceedance A1 Stack 27mg/Nm3-C",null,"Gas bottle explosion"]
["25.07.2024","YP3033BE_EP_2024_AE023 - TOC Short Term Exceedance A2 Stack 22.6mg/Nm3-C",null,"Gas bottle explosion"]
["10.08.2024","YP3033BE_EP_2024_AE024 - TOC Short Term Exceedance A2 Stack 26.1mg/Nm3-C",null,"Gas bottle explosion"]
["2024-08-17","YP3033BE_EP_2024_AE025 - Short term HCl and SO2 exceedance and daily HCl exceedance of 9.92mg/Nm3-C",null,"Issue with lime delivery",null,null,"Lime delivery contract was amended to ensure pick-up and of lime and delivery are the same day. KPIs are also now recorded and discussed with delivery partner in contract meetings."]
["2024-08-17","YP3033BE_EP_2024_AE026 - CO Daily and 95th%ile, 68.77mg/Nm3-C and 281mg/Nm3-C respectively, A1 stack",null,"PA fan failure",null,null,"Average was brought back down following PA equipment failure. but explosions later in the day caused exceedance."]
["2024-08-17","YP3033BE_EP_2024_AE027 - Two short term TOC 137.3mg/Nm3-C and 31.5mg/Nm3-C, A1 stack",null,"Explosion",null,null,"Ongoing data tracking and analysis into explosions to identify patterns in their occurrence to explore if there are any preventative options."]
["2024-08-23","YP3033BE_EP_2024_AE028 - Short term TOC 26.4mg/Nm3-C, A1 stack",null,"Gas bottle explosion"]
["2024-08-27","YP3033BE_EP_2024_AE029 - Short term TOC 27.6mg/Nm3-C, A1 stack",null,"Gas bottle explosion"]
["2024-08-28","YP3033BE_EP_2024_AE030 - CO 95th%ile A1 Stack, 152.3mg/Nm3-C",null,"Feeder ram and roller grate 1 issues",null,null,"A 'slice' was installed into the feeder ram hydraulics to increase flow. In the longer term new proportional valves are to be installed on feeder ram."]
["2024-08-31","YP3033BE_EP_2024_AE031 - Short term TOC, A2 Stack, 20.4mg/Nm3-C",null,"Gas bottle explosion",null,null,"Ongoing data tracking and analysis into explosions to identify patterns in their occurrence to explore if there are any preventative options."]
["2024-09-11","YP3033BE_EP_2024_AE032 - Two short term TOC 22mg/Nm3-C and 24mg/Nm3-C, A1 stack",null,"Gas bottle explosions"]
["2024-09-14","YP3033BE_EP_2024_AE033 -  Short term TOC, A1 Stack, 20.6mg/Nm3-C",null,"Gas bottle explosions"]
["2024-09-17","YP3033BE_EP_2024_AE034 -  Short term TOC, A1 Stack, 41.1mg/Nm3-C",null,"Gas bottle explosions"]
["2024-09-20","YP3033BE_EP_2024_AE035 -  Short term TOC, A1 Stack, 49.3mg/Nm3-C",null,"Gas bottle explosions"]
["2024-09-21","YP3033BE_EP_2024_AE036  -  Short term TOC, A1 Stack, 22.3mg/Nm3-C",null,"Gas bottle explosions"]
["2024-10-01","YP3033BE_EP_2024_AE037 - Short term dust breach A1 Stack 32.5mg/Nm3-C",null,"FGT pre-heat dampener open",null,null,"Added an interlock to prevent pre-heat dampener opening when the FGT is in an online state."]
["2024-10-10","YP3033BE_EP_2024_AE039 - Periodic monitoring Dioxins breach, A2 Stack, 0.1816ng/m3",null,"PAC dosing issue",null,null,"Review low alarm sequence for PAC dosing system, consistently across all streams, and carry out calibration check on dosing flow meters. Also lessons learnt are carried out with operations team."]
["2024-11-25","YP3033BE_EP_2024_AE044 -  Short term TOC, A2 Stack, 28.5mg/Nm3-C",null,"Gas bottle explosions",null,null,"Ongoing data tracking and analysis into explosions to identify patterns in their occurrence to explore if there are any preventative options."]
[null,"YP3033BE_EP_2024_AE045 - NH3 daily average exceedance, 15.88 mg/Nm3-C",null,"Dosing concentrated carbamine following plant trip",null,null,"Review possibility for integrating engineering controls to stop dosing carbamine should NH3 go too high."]
[null,"YP3033BE_EP_2024_AE049 -  Short term TOC, A1 Stack, 27mg/Nm3-C",null,"Gas bottle explosion",null,null,"Ongoing data tracking and analysis into explosions to identify patterns in their occurrence to explore if there are any preventative options."]
["*If the Environment Agency (EA) has given a Compliance Classification Scheme (CCS) score due to a permit non-compliance it should be entered here (CCS4 = No impact; CCS3 = Minor impact; CCS2 = Significant impact; CCS1 = Major impact). If the EA has not yet assessed a non-compliance which you have notified to them, these columns should be left blank. Enter N/A if no score was given for the root cause.  "]
[]
["Summary of any complaints received and actions to taken to resolve them."]
["Date","Summary of complaint [including Line/Reference]",null,null,"Reason (including whether substantiated by the operator or the EA)",null,null,"Measures taken to prevent reoccurrence"]

{"sheet":"Improvements","index":8,"n_rows":39,"n_cols":5,"rows_kept":39,"cut":false,"hidden":false,"merged":[[37,0,37,8],[38,0,47,8],[4,0,4,8],[5,0,13,8],[15,0,15,8],[16,0,24,8],[26,0,26,8],[27,0,35,8]]}
[{"$f":"+'Cover Page'!$B$29","v":"Annual Performance Report 2024"},null,null,null,{"$f":"+'Cover Page'!$B$33","v":"Edmonton EFW"}]
[]
["Summary of Plant Improvements"]
[]
["Summary of any efficiency improvements that have been completed within the year."]
["FGT's 2 & 3 baghouse hopper replacement\nBoiler's 1 & 3 boiler bank replacement\nBoiler's 1 & 3 Superheater top & mid bank replacement\nAsh conveying system (FGT) overhaul\nEconomiser damper trial replacement (enabling Boiler Warm through to be more controlled, as well as better FGT inlet temperature control)\nTA3 Major overhaul/inspection\nBoiler 5 Superheater bottom bend replacement\nSecondary air fan duct re-route to take in bunker house atmosphere"]
[]
[]
[]
[]
[]
[]
[]
[]
[]
["Summary of any permit improvement conditions that have been completed within the year and the resulting environmental benefits."]
["Improvement Condition 1 (IC1) was fulfilled during 2024. IC1 stipulates that operators shall perform a study determining the extent to which the operation of the current systems to minimise NOx emissions can be further optimised, reducing NOx as far as possible below 180 mg/Nm3 as a daily average. A trial was undertaken in early 2024, with a report submitted to the EA. This first trial had limited success however. Following this, improvements were made to our carbamine dosing system, and a re-trial was undertaken in the latter part of 2024. The second trial was much more successful, and a retrial report was submitted to the EA at the end of the year. "]
[]
[]
[]
[]
[]
[]
[]
[]
[]
["Summary of any changes to the plant or operating techniques which required a variation to the permit and a summary of the resulting environmental impact."]
["None"]
[]
[]
[]
[]
[]
[]
[]
[]
[]
["Summary of any other improvements made to the plant or planned to be made and a summary of the resulting environmental benefits."]
["FGT's 1 & 4 baghouse hopper replacement\nBoiler's 2 & 4 boiler bank replacement\nBoiler's 2 & 4 top & mid bank superheater replacement\nRemaining boiler economiser damper replacement\nBoilers 1-5 furnace side wall slope tube bottom bend replacement"]

{"sheet":"Public Liasion","index":9,"n_rows":41,"n_cols":5,"rows_kept":41,"cut":false,"hidden":false,"merged":[[14,2,15,8],[16,0,17,1],[16,2,17,8],[22,0,23,1],[22,2,23,8],[18,0,19,1],[18,2,19,8],[20,0,21,1],[20,2,21,8],[28,0,28,1],[28,2,28,8],[5,0,5,1],[5,2,5,8],[6,0,7,1],[6,2,7,8],[8,0,9,1],[8,2,9,8],[10,0,11,1],[10,2,11,8],[24,0,25,1],[24,2,25,8],[27,0,27,8],[12,0,13,1],[12,2,13,8],[14,0,15,1],[29,0,30,1],[29,2,30,8],[31,0,32,1],[31,2,32,8],[33,0,34,1],[33,2,34,8],[35,0,36,1],[35,2,36,8],[37,0,38,1],[37,2,38,8],[40,0,40,8]]}
[{"$f":"+'Cover Page'!$B$29","v":"Annual Performance Report 2024"},null,null,null,{"$f":"+'Cover Page'!$B$33","v":"Edmonton EFW"}]
[]
["Details of Public & Stakeholder Liaison"]
[]
["Summary of events held during the reporting year."]
["Date",null,"Description"]
["January 2024",null,"Imperial College London Tour or the Energy Centre"]
[]
["February 2024",null,"Apprentices from the North London Heat and Power Project toured the Resource Recovery Facility and the energy plant, gaining an insights into our operations. "]
[]
["February 2024",null,"A group of 10 young people from the Arsenal Football Community Club had the opportunity to visit various areas within the Energy Centre. They also participated in an interactive VR safety session. "]
[]
["April 2024",null,"Pinhole Community Group – local community group visiting the energy centre and RRF construction"]
[]
["May 2024",null,"Harris Academy – Work experience and Mentorship Programme for 10 students. "]
[]
["July 2024",null,"Middlesex University Student – Research Project with HSQE department and tour."]
[]
["August 2024",null,"Local Resident tour to find out more about Energy Centre Operations. "]
[]
["October 2024",null,"WSP – Engineering support team to learn more about the existing facility and tour the resource recovery facility. "]
[]
["October 2024",null,"Leytonstone School - Work experience and Mentorship Programme for 10 students."]
[]
["November 2024",null,"Capel Manor Environmental Students – Tour of the energy centre,  resource recovery and EcoPark House. "]
[]
[]
["List of events planned for next year"]
["Date",null,"Description"]
["March 2025",null,"Imperial College London – tour of the energy centre "]
[]
["March 2025",null,"Capel Manor College – tour of the EcoPark facilities "]
[]
["May 2025",null,"Harris Academy – Work Experience Mentoring Programme "]
[]
[]
[]
[]
[]
[]
["If you wish to be involved in the public liaison programme, please contact _________________"]

{"sheet":"CO2 N2O","index":10,"n_rows":25,"n_cols":11,"rows_kept":25,"cut":false,"hidden":false,"merged":[[22,2,22,3],[25,1,25,3],[16,2,16,3],[4,0,4,3],[9,0,9,3],[17,0,17,3],[13,0,13,3],[12,0,12,1],[8,2,8,3],[11,2,11,3],[19,2,19,3]]}
[{"$f":"+'Cover Page'!$B$29","v":"Annual Performance Report 2024"},null,{"$f":"+'Cover Page'!$B$33","v":"Edmonton EFW"}]
[]
["Carbon dioxide emissions and biogenic content of waste inputs",null,null,null,null,"Notes:"]
[]
["Carbon dioxide emissions (all types of plant)"]
[null,"Annual mass of carbon dioxide released","tonnes ",501310]
[null,"Annual mass of carbon dioxide released per tonne of waste burned","t CO2 / t waste ",1.01]
[null,"Annual mass of carbon dioxide released per MWh of energy exported","t CO2 / MWh export ",2.36]
[null,"Description of how annual carbon dioxide mass emission has been calculated. \nSee Note 1","Calculated using CEMS data",null,null,"Note 1: All permits require operators to continuously monitor CO2 to EN14181 and flow to BS EN 16911-2 (unless otherwise agreed in writing). Operators must therefore use the results from these instruments to calculate their annual CO2 emissions. Where an operator does not have a flow meter calibrated to BS EN 16911-2, the averaged flow measurement from that year's periodic monitoring can be used instead. If the plant does not have calibrated CO2 CEMS, a suitably justified emissions factor can be used."]
["Nitrous oxide emissions (only plants which use ammonia or urea to abate NOx emissions)"]
[null,"Annual mass emissions of nitrous oxide","tonnes N2O",46.06,null,null,null,null,null,{"$f":"D6*0.6","v":300786},{"$f":"D6-J11","v":200524}]
[null,"Description of how annual nitrous oxide mass emission has been calculated\nSee Note 2","Calculated using CEMS data",null,null,"Note 2: All permits require operators to continuously monitor N2O to EN14181 and flow to BS EN 16911-2, unless otherwise agreed in writing. Operators must therefore use the results from these instruments to calculate their annual N2O emissions. Where an operator does not have a flow meter calibrated to BS EN 16911-2, the averaged flow measurement from periodic monitoring can be used instead. If the plant does not have calibrated N2O CEMS, data from periodic monitoring or a suitably justified emissions factor can be used instead."]
["Total annual carbon dioxide + nitrous oxide emissions. \nSee Note 3. ",null,"tonnes CO2e",{"$f":"D6+(D11*265)","v":513515.9},null,"Note 3: Total annual carbon dioxide and nitrous oxide emissions reported as carbon dioxide equivalent where 1 tonne nitrous oxide is equivalent to 265 tonnes carbon dioxide."]
["Biogenic CO2 emissions (See Note 4)",null,null,null,null,"Note 4: Only plants combusting residual municipal waste, refuse derived fuel or solid recovered fuel need complete this section. "]
[null,"Percentage of total carbon dioxide emissions arising from biogenic waste","%",0.6]
[null,"No. of measurements undertaken","Number",2]
[null,"Description of how percentage biogenic carbon dioxide emissions have been measured or calculated.\nSee Note 5","Two C14 spot samples were taken in the year, in March and in October",null,null,"Note 5: The results from C14 sampling should be used if this is carried out at the plant (either via an installed sampler or from spot samples).  \nOtherwise, as an approximation (and in lieu of any more accurate metrics which may be developed in future), the measured or estimated biogenic fraction by net calorific value (see Note 6) can be assumed to be the same as the biogenic CO2 fraction of the total CO2 emissions from the plant. "]
["Biogenic fraction of waste feedstock (See Note 4)"]
[null,"Yearly average biogenic percentage of the waste by net calorific value (NCV)","%",0.59399999999999997]
[null,"Description of how biogenic percentage (by NCV) has been calculated or estimated. \nSee Note 6","Waste sampling and biogenic analysis is carried out by an independent contractor. The analysis is done in accordance with ISO 21644:2021",null,null,"Note 6: If C14 sampling is carried out at the plant, the methodology set out in the embedded document entitled \"Renewable Energy Association Energy Content of Fuels - Description of Method\" embedded below can be used to calculate the biogenic percentage by net calorific value. Otherwise, data from waste sampling or BIOMA software can be used; or if none of these are available, an estimated figure with justification or a figure assumed on the basis of up-to-date industry data can be used. "]
[null,"Yearly average biogenic percentage of the waste by mass","%",0.59399999999999997]
[null,"If waste sampling undertaken, no. of samples used to ascertain average biogenic percentages above","Number",1]
[null,"Description of how biogenic percentage (by mass) has been calculated or estimated. \nSee Note 7","Waste sampling and biogenic analysis is carried out by an independent contractor and is analysed on a dry basis. The analysis is done in accordance with ISO 21644:2021.",null,null,"Note 7: Where available, data from waste sampling should be used; otherwise, an estimated figure with justification can be used, or a figure assumed on the basis of up-to-date industry data. "]
[]
[null,"Comments:"]

{"sheet":"Residue Quality ","index":11,"n_rows":36,"n_cols":6,"rows_kept":36,"cut":false,"hidden":false,"merged":[[16,0,17,1],[16,2,17,6],[18,0,19,1],[18,2,19,6],[12,0,12,6],[13,0,13,1],[13,2,13,6],[5,0,6,6],[7,0,8,6],[9,0,10,6],[14,0,15,1],[14,2,15,6],[20,0,21,1],[20,2,21,6],[22,0,23,1],[22,2,23,6],[31,3,31,4],[27,2,28,2],[28,3,28,4],[28,5,28,6],[27,3,27,6],[26,0,26,6],[36,0,41,6],[32,3,32,4],[35,0,35,6],[27,0,28,1],[29,0,29,1],[30,0,30,1],[31,0,31,1],[32,0,32,1],[29,3,29,4],[30,3,30,4],[29,5,29,6],[30,5,30,6],[31,5,31,6],[32,5,32,6],[33,0,33,6]]}
[{"$f":"+'Cover Page'!$B$29","v":"Annual Performance Report 2024"},null,null,null,{"$f":"+'Cover Page'!$B$33","v":"Edmonton EFW"}]
[]
["Residue Quality Monitoring Requirements"]
[]
["Summary of monitoring undertaken and compliance"]
["Bi-monthly IBA hazardous waste assessment."]
[]
["Quarterly analysis on fly ash, APCr and IBA, including dioxins and PCB's analysis. "]
[]
[]
[]
[]
["Commentary on any specific events"]
["Date & Event",null,"Description"]
[]
[]
[]
[]
[]
[]
[]
[]
[]
[]
[]
[]
["Residue Quality Monitoring Results"]
["Parameter (unit) ",null,"Limit*","Normal Operation "]
[null,null,null,"Bottom ash  ",null,"APC Residues"]
["Loss on Ignition (average %)",null,"<5%","-"]
["Total Organic Carbon (average %)",null,"<3%",0.93500000000000005]
["No. of Assessments Undertaken",null,"---",24,null,4]
["No. of Hazardous Results",null,"---",0]
["* The permit will specify a limit of either 5% loss on ignition or 3% total organic carbon. If both are measured anyway, please enter the results here, even where the limit does not apply. "]
[]
["Comments :"]

{"sheet":"Water","index":12,"n_rows":38,"n_cols":9,"rows_kept":38,"cut":false,"hidden":false,"merged":[[34,3,34,4],[33,3,33,4],[32,3,32,4],[31,3,31,4],[30,3,30,4],[35,0,35,2],[36,0,36,2],[37,0,37,2],[37,3,37,4],[36,3,36,4],[35,3,35,4],[30,0,30,2],[31,0,31,2],[32,0,32,2],[33,0,33,2],[34,0,34,2],[5,0,6,8],[7,0,8,8],[9,0,10,8],[12,0,12,8],[13,0,13,1],[13,2,13,8],[21,0,21,8],[22,0,22,2],[22,3,22,4],[14,0,15,1],[14,2,15,8],[16,0,17,1],[16,2,17,8],[18,0,19,1],[18,2,19,8],[23,0,23,2],[23,3,23,4],[24,0,24,2],[24,3,24,4],[25,0,25,2],[25,3,25,4],[29,0,29,2],[29,3,29,4],[26,0,26,2],[26,3,26,4],[27,0,27,2],[27,3,27,4],[28,0,28,2],[28,3,28,4]]}
[{"$f":"+'Cover Page'!$B$29","v":"Annual Performance Report 2024"},null,null,null,{"$f":"+'Cover Page'!$B$33","v":"Edmonton EFW"}]
[]
["Emissions to Water"]
[]
["Summary of monitoring undertaken and compliance"]
["Monthly spot samples are carried out under the Thames Effluent Consent suite of the discharge to sewer from the Ecopark, these are carried out by an independent contractor."]
[]
["Thames Water take bi-monthly samples of our discharge to independently monitor compliance against consented limits."]
[]
["Bi-annual monitoring of emissions to sewer is also undertaken against a wider suite of parameters - below."]
[]
[]
["Commentary on any specific events"]
["Date & Event",null,"Description"]
["NA",null,"NA"]
[]
[]
[]
[]
[]
[]
["Emissions to Water / Sewer"]
["Parameter",null,null,"Monitoring Frequency",null,"Limit","Target","Max.","Average"]
["Dieldrin ng/l"," Dieldrin ng/l"," Dieldrin ng/l","Bi-annual",null,"50 ng/l","NA","NA","<20"]
["Gamma-   Hexachlorocyclohexane ng/l"," Gamma-   Hexachlorocyclohexane ng/l"," Gamma-   Hexachlorocyclohexane ng/l","Bi-annual",null,"100 ng/l","NA","NA","<20"]
["Polychlorinated biphenyls ng/l"," Polychlorinated biphenyl 28 ng/l"," Polychlorinated biphenyl 28 ng/l","Bi-annual",null,"50 ng/l","NA","NA","<5"]
["Trifluralin ng/l"," Trifluralin ng/l"," Trifluralin ng/l","Bi-annual",null,"50 ng/l","NA","NA","<20"]
["Hexachlorobenzene ng/l"," Hexachlorobenzene ng/l"," Hexachlorobenzene ng/l","Bi-annual",null,"300 ng/l","NA","NA","<20"]
["Hexachlorobutadiene ng/l"," Hexachlorobutadiene ng/l"," Hexachlorobutadiene ng/l","Bi-annual",null,"50 ng/l","NA","NA","<20"]
["Trichlorobenzene ng/l"," Trichlorobenzene ng/l"," Trichlorobenzene ng/l","Bi-annual",null,"50 ng/l","NA","NA","<40"]
["Dichlorvos ng/l"," Dichlorvos ng/l"," Dichlorvos ng/l","Bi-annual",null,"50 ng/l","NA","NA","<20"]
["Fenitrothion ng/l"," Fenitrothion ng/l"," Fenitrothion ng/l","Bi-annual",null,"50 ng/l","NA","NA","<20"]
["Simazine ng/l"," Simazine ng/l"," Simazine ng/l","Bi-annual",null,"300 ng/l","NA","NA","<20"]
["Atrazine ng/l"," Atrazine ng/l"," Atrazine ng/l","Bi-annual",null,"300 ng/l","NA","NA","<20"]
["Pentachlorophenol & it's compounds ng/l"," Pentachlorophenol & it`s   compounds ng/l"," Pentachlorophenol & it`s   compounds ng/l","Bi-annual",null,"300 ng/l","NA","NA","<20"]
[" Total Cadmium ug/l"," Total Cadmium ng/l"," Total Cadmium ng/l","Bi-annual",null,"50 μg/l","NA","NA",0.11]
[" Total Mercury ug/l "," Total Mercury ng/l "," Total Mercury ng/l ","Bi-annual",null,"10 μg/l","NA","NA","<0.05"]
["Chromium, copper, lead, nickel,silver and zinc in total mg/l",null,null,"Bi-annual",null,"5 mg/l","NA","NA"]

{"sheet":"Air (periodic)","index":13,"n_rows":40,"n_cols":11,"rows_kept":40,"cut":false,"hidden":false,"merged":[[5,10,8,13],[9,10,11,13],[8,0,8,9],[5,0,6,9],[11,0,11,1],[12,0,12,1],[11,3,11,4],[12,3,12,4],[9,0,10,1],[9,5,9,9],[9,3,10,4],[9,2,10,2],[16,0,16,1],[17,0,17,1],[18,0,18,1],[13,0,13,1],[14,0,14,1],[15,0,15,1],[39,0,40,9],[25,0,25,1],[26,0,26,1],[22,0,22,1],[23,0,23,1],[37,0,37,1],[27,0,27,1],[28,0,28,1],[29,0,29,1],[30,0,30,1],[31,0,31,1],[32,0,32,1],[37,3,37,4],[29,3,29,4],[30,3,30,4],[36,3,36,4],[38,0,38,9],[19,0,19,1],[20,0,20,1],[21,0,21,1],[34,3,34,4],[35,3,35,4],[33,0,33,1],[34,0,34,1],[35,0,35,1],[36,0,36,1],[24,0,24,1],[32,3,32,4],[27,3,27,4],[33,3,33,4],[19,3,19,4],[20,3,20,4],[21,3,21,4],[22,3,22,4],[23,3,23,4],[24,3,24,4],[31,3,31,4],[25,3,25,4],[26,3,26,4],[28,3,28,4],[13,10,14,12],[15,10,16,10],[15,11,16,11],[15,12,16,12],[18,3,18,4],[13,3,13,4],[14,3,14,4],[15,3,15,4],[16,3,16,4],[17,3,17,4]]}
[{"$f":"+'Cover Page'!$B$29","v":"Annual Performance Report 2024"},null,null,null,{"$f":"+'Cover Page'!$B$33","v":"Edmonton EFW"}]
[]
["Emissions to Air (periodically monitored)"]
[]
["Summary of monitoring undertaken, standards used and compliance",null,null,null,null,null,null,null,null,null,"Notes:"]
[null,null,null,null,null,null,null,null,null,null,"Template may require adjustment for any bespoke monitoring requirements of permit - please also check that all default ELV values, reference periods and the stated oxygen reference value match those for your plant, and edit if necessary!"]
[]
[]
["Results of emissions to air that are periodically monitored - oxygen reference 11% "]
["Substance",null,"Ref. Period","Emission Limit Value",null,"Average",null,null,null,null,"User to add additional tables as necessary, depending on whether quarterly or bi-annual reporting is required for the compliance year"]
[null,null,null,null,null,"A1","A2","A3","A4","A5"]
["Hydrogen fluoride",null,"1 hr","1 mg/m3",null,0.04,4.7E-2]
["Cd and Tl and their compounds",null,"0.5-8hrs","0.02 mg/m3",null,1.4E-3,2E-3]
["Hg and its compounds",null,"0.5-8hrs","0.02 mg/m3",null,3.5999999999999999E-3,3.5000000000000001E-3]
["Sb, As, Pb, Cr, Co, Cu, Mn, Ni, V and their compounds",null,"0.5-8hrs","0.3 mg/m3",null,3.4500000000000003E-2,2.0499999999999997E-2]
["Dioxins & Furans (I-TEQ)",null,"6-8hrs","0.06 ng/m3",null,3.5500000000000002E-3,"0.0978*"]
["PCBs (WHO-TEQ Humans / Mammals)",null,"6-8hrs","None set ng/m3",null,3.0500000000000004E-4,3.5100000000000001E-3]
["PCBs (WHO-TEQ Fish)",null,"6-8hrs","None set ng/m3",null,2.05E-5,1.6699999999999999E-4]
["PCBs (WHO-TEQ Birds)",null,"6-8hrs","None set ng/m3",null,1.495E-3,7.6500000000000005E-3]
["Dioxins & Furans (WHO-TEQ Humans / Mammals)",null,"6-8hrs","None set ng/m3",null,3.5500000000000002E-3,8.7000000000000008E-2]
["Dioxins & Furans (WHO-TEQ Fish)",null,"6-8hrs","None set ng/m3",null,3.5999999999999999E-3,0.10494999999999999]
["Dioxins & Furans (WHO-TEQ Birds)",null,"6-8hrs","None set ng/m3",null,7.0000000000000001E-3,0.22814999999999999]
["Anthanthrene",null,"6-8hrs","None set µg/m3",null,1.2999999999999999E-3,1.8E-3]
["Benzo(a)anthracene",null,"6-8hrs","None set µg/m3",null,1.6000000000000001E-3,2.8999999999999998E-3]
["Benzo(a)pyrene",null,"6-8hrs","None set µg/m3",null,1.9E-3,2.5999999999999999E-3]
["Benzo(b)fluoranthene",null,"6-8hrs","None set µg/m3",null,1.6999999999999999E-3,2.3999999999999998E-3]
["Benzo(b)naptho(2,1-d) thiophene",null,"6-8hrs","None set µg/m3",null,1.2999999999999999E-3,1.8E-3]
["Benzo(c)phenanthrene",null,"6-8hrs","None set µg/m3",null,2E-3,1.8E-3]
["Benzo(ghi)perylene",null,"6-8hrs","None set µg/m3",null,2E-3,2.7000000000000001E-3]
["Benzo(k)fluoranthene",null,"6-8hrs","None set µg/m3",null,1.2999999999999999E-3,1.8E-3]
["Cholanthrene",null,"6-8hrs","None set µg/m3",null,1.2999999999999999E-3,1.8E-3]
["Chrysene",null,"6-8hrs","None set µg/m3",null,1.4E-3,8.6E-3]
["Cyclopenta(cd)pyrene",null,"6-8hrs","None set µg/m3",null,3.0999999999999999E-3,5.4000000000000003E-3]
["Dibenzo(ai)pyrene",null,"6-8hrs","None set µg/m3",null,1.2999999999999999E-3,1.8E-3]
["Dibenzo(ah)anthracene",null,"6-8hrs","None set µg/m3",null,1.2999999999999999E-3,1.8E-3]
["Fluoranthene",null,"6-8hrs","None set µg/m3",null,4.6600000000000003E-2,0.10059999999999999]
["Indeno(123-cd) pyrene",null,"6-8hrs","None set µg/m3",null,1.2999999999999999E-3,1.8E-3]
["Naphthalene",null,"6-8hrs","None set µg/m3",null,3.3031999999999999,6.4]
["Comments :"]
["* Above the consented limit due to breach occurred during 2nd bi-annual testing. March result was 0.014 whereas October result was 0.1816. Protocol followed and re-testing is being undertaken. "]

{"sheet":"Air (CEMS)","index":14,"n_rows":28,"n_cols":14,"rows_kept":28,"cut":false,"hidden":false,"merged":[[14,13,15,13],[14,14,15,14],[14,15,15,15],[12,13,13,15],[26,0,26,12],[28,0,29,12],[13,0,14,0],[5,0,6,12],[7,0,8,12],[10,0,10,12],[11,0,12,0],[11,2,12,2],[11,1,12,1],[11,3,11,4],[11,5,11,6],[11,7,11,8],[11,9,11,10],[11,11,11,12]]}
[{"$f":"+'Cover Page'!$B$29","v":"Annual Performance Report 2024"},null,null,null,null,null,null,null,{"$f":"+'Cover Page'!$B$33","v":"Edmonton EFW"}]
[]
["Emissions to Air (continuously monitored)"]
[null,null,null,null,null,null,null,null,null,null,null,null,null,"Notes:"]
["Summary of monitoring undertaken, standards used and compliance",null,null,null,null,null,null,null,null,null,null,null,null,"Template may require adjustment for any bespoke monitoring requirements of permit"]
[null,null,null,null,null,null,null,null,null,null,null,null,null,"Please check that all default ELV values match those for your plant and edit if necessary!"]
[null,null,null,null,null,null,null,null,null,null,null,null,null,"Report to 1 decimal place"]
[]
[]
[]
["Results of emissions to air that are continuously monitored (maximum and average values for each line) - oxygen reference 11%"]
["Substance","Reference Period","Emission Limit Value","A1",null,"A2",null,"A3",null,"A4",null,"A5"]
[null,null,null,"Max.","Avg.","Max.","Avg.","Max.","Avg.","Max.","Avg.","Max.","Avg."]
["Oxides of nitrogen","Daily mean","180 mg/m3 ",{"$f":"NOx!O19","v":183.3},{"$f":"NOx!N19","v":166.23333333333332},{"$f":"NOx!O34","v":178.9},{"$f":"NOx!N34","v":166.2}]
[null,"½ hourly mean","400 mg/m3 ",{"$f":"NOx!M19","v":296.10000000000002},{"$f":"NOx!L19","v":166.23333333333332},{"$f":"NOx!M34","v":273},{"$f":"NOx!L34","v":166.2}]
["Particulates","Daily mean","5 mg/m3",{"$f":"Particulates!O19","v":2.6},{"$f":"Particulates!N19","v":0.69166666666666654},{"$f":"Particulates!O34","v":2.4},{"$f":"Particulates!N34","v":0.51666666666666672}]
[null,"½ hourly mean","30 mg/m3 ",{"$f":"Particulates!M19","v":32.5},{"$f":"Particulates!L19","v":0.69166666666666654},{"$f":"Particulates!M34","v":14.2},{"$f":"Particulates!L34","v":0.51666666666666672}]
["Total Organic Carbon ","Daily mean","10 mg/m3 ",{"$f":"TOC!O19","v":20.100000000000001},{"$f":"TOC!N19","v":1.4416666666666664},{"$f":"Particulates!O34","v":2.4},{"$f":"TOC!N34","v":1.1166666666666669}]
[null,"½ hourly mean","20 mg/m3 ",{"$f":"TOC!M19","v":137.30000000000001},{"$f":"TOC!L19","v":1.4416666666666664},{"$f":"TOC!M34","v":69.2},{"$f":"TOC!L34","v":1.1166666666666669}]
["Hydrogen chloride ","Daily mean","8 mg/m3 ",{"$f":"HCl!O19","v":9.9},{"$f":"HCl!N19","v":5.1083333333333325},{"$f":"HCl!O34","v":7.8},{"$f":"HCl!N34","v":5.0750000000000002}]
[null,"½ hourly mean","60 mg/m3 ",{"$f":"HCl!M19","v":119.7},{"$f":"HCl!L19","v":5.1083333333333325},{"$f":"HCl!M34","v":37.5},{"$f":"HCl!L34","v":5.0750000000000002}]
["Sulphur dioxide","Daily mean","40 mg/m3 ",{"$f":"'SO2'!O19","v":34.4},{"$f":"'SO2'!N19","v":12.408333333333331},{"$f":"'SO2'!O34","v":27.4},{"$f":"'SO2'!N34","v":10.291666666666666}]
[null,"½ hourly mean","200 mg/m3 ",{"$f":"'SO2'!M19","v":222.6},{"$f":"'SO2'!L19","v":12.408333333333331},{"$f":"'SO2'!M34","v":192.1},{"$f":"'SO2'!L34","v":10.291666666666666}]
["Carbon monoxide ","Daily mean","50 mg/m3 ",{"$f":"'CO 95% 10 min'!Q22","v":69.8},{"$f":"'CO 95% 10 min'!P22","v":26.925000000000001},{"$f":"'CO 95% 10 min'!Q37","v":88.8},{"$f":"'CO 95% 10 min'!P37","v":31.608333333333334}]
[null,"95%ile 10-min avg *","150 mg/m3 *",{"$f":"'CO 95% 10 min'!M22","v":155},{"$f":"AVERAGE('CO 95% 10 min'!N10:N21)","v":26.925000000000001},{"$f":"'CO 95% 10 min'!M37","v":147.34166666666667},{"$f":"AVERAGE('CO 95% 10 min'!N25:N36)","v":31.608333333333334}]
[" Ammonia","Daily mean","15 mg/m3 ",{"$f":"'NH3'!O19","v":20},{"$f":"'NH3'!N19","v":8.3166666666666647},{"$f":"'NH3'!O34","v":15.9},{"$f":"'NH3'!N34","v":7.8333333333333348}]
["* = delete as appropriate, depending on whether your plant has half-hourly or 10-min CO ELVs\n"]
["Comments :"]

{"sheet":"HCl","index":15,"n_rows":79,"n_cols":17,"rows_kept":79,"cut":false,"hidden":false,"merged":[[12,16,15,18],[51,9,63,9],[66,9,78,9],[4,9,4,14],[4,1,4,3],[4,4,4,6],[48,0,51,6],[47,0,47,6],[6,9,18,9],[21,9,33,9],[36,9,48,9],[3,16,7,18],[9,16,11,18],[18,4,18,6]]}
[{"$f":"+'Cover Page'!$B$29","v":"Annual Performance Report 2024"},null,null,null,{"$f":"+'Cover Page'!$B$33","v":"Edmonton EFW"}]
[]
["Monitoring of Hydrogen Chloride emissions",null,null,"Whole Installation",null,null,"See  Notes in Cell Q3",null,null,{"$f":"+A3","v":"Monitoring of Hydrogen Chloride emissions"},null,null,null,"Per Combustion Line",null,null,"Notes:"]
[null,null,null,null,null,null,null,null,null,null,null,null,null,null,null,null,"User to add logic to complete Whole installation, Table A5:G18. From the data in Per Combustion Line, Table J6:O79, subject to No. of lines installed"]
[{"$f":"+'Cover Page'!C39","v":2024},"1/2 Hourly Reference Periods",null,null,"Daily Reference Periods"]
["mg/Nm3","1/2 hourly HCl ELV","Monthly mean of half-hourly averages","Highest half- hourly average","Daily HCl ELV","Monthly mean of  daily averages","Highest daily average",null,null,{"$f":"+A5","v":2024},"mg/Nm3","Monthly mean of half-hourly averages","Highest half- hourly average","Monthly mean of  daily averages","Highest daily average"]
["Jan",60,{"$f":"AVERAGE(L7,L22)","v":4.0999999999999996},{"$f":"MAX(M7,M22)","v":29.1},8,{"$f":"AVERAGE(N7,N22)","v":4.0999999999999996},{"$f":"MAX(O7,O22)","v":6.9},null,null,"A1","Jan",4.5999999999999996,29.1,4.5999999999999996,6.9]
["Feb",60,{"$f":"AVERAGE(L8,L23)","v":5.4},{"$f":"MAX(M8,M23)","v":35},8,{"$f":"AVERAGE(N8,N23)","v":5.4},{"$f":"MAX(O8,O23)","v":7.5},null,null,null,"Feb",5.3,26.9,5.3,7.1]
["Mar",60,4.8,31,8,4.8,7.2,null,null,null,"Mar",5,27.5,5,7.2,null,"Whole Installation table A5:G18:"]
["Apr",60,4.25,37.5,8,4.25,7.8,null,null,null,"Apr",3.9,23,3.9,6.6,null,"Mean: for 1/2 hourly and daily periods calculate mean of values across all operational combustion lines for the month"]
["May",60,4.45,51.3,8,4.45,7.6,null,null,null,"May",4.7,51.3,4.7,7.6]
["Jun",60,5.3,42.5,8,5.3,7.6,null,null,null,"Jun",5.5,42.5,5.5,7.5]
["Jul",60,5.35,35.700000000000003,8,5.35,7.6,null,null,null,"Jul",5.5,29.6,5.5,7.6,null,"Maximum: for 1/2 hourly and daily periods use the highest value across all operational combustion lines for the month"]
["Aug",60,5.4,119.7,8,5.4,9.9,null,null,null,"Aug",5.9,119.7,5.9,9.9]
["Sep",60,5.4499999999999993,17.5,8,5.4499999999999993,7.4,null,null,null,"Sep",4.8,17.5,4.8,6.5]
["Oct",60,5.65,27.7,8,5.65,7.3,null,null,null,"Oct",5.3,27.7,5.3,7.1]
["Nov",60,5.5,22.9,8,5.5,7.4,null,null,null,"Nov",5.5,22.9,5.5,7.4]
["Dec",60,5.4499999999999993,37.200000000000003,8,5.4499999999999993,7.3,null,null,null,"Dec",5.3,18.8,5.3,7]
[null,null,null,null,null,null,null,null,null,null,"Annual",{"$f":"AVERAGE(L7:L18)","v":5.1083333333333325},{"$f":"MAX(M7:M18)","v":119.7},{"$f":"AVERAGE(N7:N18)","v":5.1083333333333325},{"$f":"MAX(O7:O18)","v":9.9}]
[]
[null,null,null,null,null,null,null,null,null,{"$f":"+A5","v":2024},"mg/Nm3","Monthly mean of half-hourly averages","Highest half- hourly average","Monthly mean of  daily averages","Highest daily average"]
[null,null,null,null,null,null,null,null,null,"A2","Jan",3.6,17.100000000000001,3.6,6.2]
[null,null,null,null,null,null,null,null,null,null,"Feb",5.5,35,5.5,7.5]
[null,null,null,null,null,null,null,null,null,null,"Mar",4.5999999999999996,31,4.5999999999999996,6.6]
[null,null,null,null,null,null,null,null,null,null,"Apr",4.5999999999999996,37.5,4.5999999999999996,7.8]
[null,null,null,null,null,null,null,null,null,null,"May",4.2,27.7,4.2,7]
[null,null,null,null,null,null,null,null,null,null,"Jun",5.0999999999999996,31,5.0999999999999996,7.6]
[null,null,null,null,null,null,null,null,null,null,"Jul",5.2,35.700000000000003,5.2,7.6]
[null,null,null,null,null,null,null,null,null,null,"Aug",4.9000000000000004,34.5,4.9000000000000004,7.8]
[null,null,null,null,null,null,null,null,null,null,"Sep",6.1,13.7,6.1,7.4]
[null,null,null,null,null,null,null,null,null,null,"Oct",6,21,6,7.3]
[null,null,null,null,null,null,null,null,null,null,"Nov",5.5,22.6,5.5,7.1]
[null,null,null,null,null,null,null,null,null,null,"Dec",5.6,37.200000000000003,5.6,7.3]
[null,null,null,null,null,null,null,null,null,null,"Annual",{"$f":"AVERAGE(L22:L33)","v":5.0750000000000002},{"$f":"MAX(M22:M33)","v":37.5},{"$f":"AVERAGE(N22:N33)","v":5.0750000000000002},{"$f":"MAX(O22:O33)","v":7.8}]
[]
[null,null,null,null,null,null,null,null,null,{"$f":"+A5","v":2024},"mg/Nm3","Monthly mean of half-hourly averages","Highest half- hourly average","Monthly mean of  daily averages","Highest daily average"]
[null,null,null,null,null,null,null,null,null,"A3","Jan"]
[null,null,null,null,null,null,null,null,null,null,"Feb"]
[null,null,null,null,null,null,null,null,null,null,"Mar"]
[null,null,null,null,null,null,null,null,null,null,"Apr"]
[null,null,null,null,null,null,null,null,null,null,"May"]
[null,null,null,null,null,null,null,null,null,null,"Jun"]
[null,null,null,null,null,null,null,null,null,null,"Jul"]
[null,null,null,null,null,null,null,null,null,null,"Aug"]
[null,null,null,null,null,null,null,null,null,null,"Sep"]
[null,null,null,null,null,null,null,null,null,null,"Oct"]
[null,null,null,null,null,null,null,null,null,null,"Nov"]
["Comments :",null,null,null,null,null,null,null,null,null,"Dec"]
[null,null,null,null,null,null,null,null,null,null,"Annual",{"$f":"AVERAGE(L37:L48)","v":{"$error":"#DIV/0!"}},{"$f":"MAX(M37:M48)","v":0},{"$f":"AVERAGE(N37:N48)","v":{"$error":"#DIV/0!"}},{"$f":"MAX(O37:O48)","v":0}]
[]
[null,null,null,null,null,null,null,null,null,{"$f":"+A5","v":2024},"mg/Nm3","Monthly mean of half-hourly averages","Highest half- hourly average","Monthly mean of  daily averages","Highest daily average"]
[null,null,null,null,null,null,null,null,null,"A4","Jan"]
[null,null,null,null,null,null,null,null,null,null,"Feb"]
[null,null,null,null,null,null,null,null,null,null,"Mar"]
[null,null,null,null,null,null,null,null,null,null,"Apr"]
[null,null,null,null,null,null,null,null,null,null,"May"]
[null,null,null,null,null,null,null,null,null,null,"Jun"]
[null,null,null,null,null,null,null,null,null,null,"Jul"]
[null,null,null,null,null,null,null,null,null,null,"Aug"]
[null,null,null,null,null,null,null,null,null,null,"Sep"]
[null,null,null,null,null,null,null,null,null,null,"Oct"]
[null,null,null,null,null,null,null,null,null,null,"Nov"]
[null,null,null,null,null,null,null,null,null,null,"Dec"]
[null,null,null,null,null,null,null,null,null,null,"Annual",{"$f":"AVERAGE(L52:L63)","v":{"$error":"#DIV/0!"}},{"$f":"MAX(M52:M63)","v":0},{"$f":"AVERAGE(N52:N63)","v":{"$error":"#DIV/0!"}},{"$f":"MAX(O52:O63)","v":0}]
[]
[null,null,null,null,null,null,null,null,null,{"$f":"+A5","v":2024},"mg/Nm3","Monthly mean of half-hourly averages","Highest half- hourly average","Monthly mean of  daily averages","Highest daily average"]
[null,null,null,null,null,null,null,null,null,"A5","Jan"]
[null,null,null,null,null,null,null,null,null,null,"Feb"]
[null,null,null,null,null,null,null,null,null,null,"Mar"]
[null,null,null,null,null,null,null,null,null,null,"Apr"]
[null,null,null,null,null,null,null,null,null,null,"May"]
[null,null,null,null,null,null,null,null,null,null,"Jun"]
[null,null,null,null,null,null,null,null,null,null,"Jul"]
[null,null,null,null,null,null,null,null,null,null,"Aug"]
[null,null,null,null,null,null,null,null,null,null,"Sep"]
[null,null,null,null,null,null,null,null,null,null,"Oct"]
[null,null,null,null,null,null,null,null,null,null,"Nov"]
[null,null,null,null,null,null,null,null,null,null,"Dec"]
[null,null,null,null,null,null,null,null,null,null,"Annual",{"$f":"AVERAGE(L67:L78)","v":{"$error":"#DIV/0!"}},{"$f":"MAX(M67:M78)","v":0},{"$f":"AVERAGE(N67:N78)","v":{"$error":"#DIV/0!"}},{"$f":"MAX(O67:O78)","v":0}]

{"sheet":"SO2","index":16,"n_rows":79,"n_cols":17,"rows_kept":79,"cut":false,"hidden":false,"merged":[[3,16,7,18],[9,16,11,18],[12,16,15,18],[66,9,78,9],[4,1,4,3],[4,4,4,6],[4,9,4,14],[6,9,18,9],[21,9,33,9],[36,9,48,9],[47,0,47,6],[48,0,51,6],[51,9,63,9],[18,4,18,6]]}
[{"$f":"+'Cover Page'!$B$29","v":"Annual Performance Report 2024"},null,null,null,{"$f":"+'Cover Page'!$B$33","v":"Edmonton EFW"}]
[]
["Monitoring of Sulphur dioxide emissions",null,null,"Whole Installation",null,null,"See  Notes in Cell Q3",null,null,{"$f":"+A3","v":"Monitoring of Sulphur dioxide emissions"},null,null,null,"Per Combustion Line",null,null,"Notes:"]
[null,null,null,null,null,null,null,null,null,null,null,null,null,null,null,null,"User to add logic to complete Whole installation, Table A5:G18. From the data in Per Combustion Line, Table J6:O79, subject to No. of lines installed"]
[{"$f":"+'Cover Page'!C39","v":2024},"1/2 Hourly Reference Periods",null,null,"Daily Reference Periods"]
["mg/Nm3","1/2 hourly SO2 ELV","Monthly mean of half-hourly averages","Highest half- hourly average","Daily SO2 ELV","Monthly mean of  daily averages","Highest daily average",null,null,{"$f":"+A5","v":2024},"mg/Nm3","Monthly mean of half-hourly averages","Highest half- hourly average","Monthly mean of  daily averages","Highest daily average"]
["Jan",200,{"$f":"AVERAGE(L7,L22)","v":7.1},{"$f":"MAX(M7,M22)","v":102.7},40,{"$f":"AVERAGE(N7,N22)","v":7.1},{"$f":"MAX(O7,O22)","v":14.7},null,null,"A1","Jan",6.3,58.5,6.3,12.8]
["Feb",200,{"$f":"AVERAGE(L8,L23)","v":8.5},{"$f":"MAX(M8,M23)","v":159.4},40,{"$f":"AVERAGE(N8,N23)","v":8.5},{"$f":"MAX(O8,O23)","v":17.600000000000001},null,null,null,"Feb",9.6,159.4,9.6,17.600000000000001]
["Mar",200,7.8999999999999995,111.6,40,7.8999999999999995,19.8,null,null,null,"Mar",8.6999999999999993,111.6,8.6999999999999993,19.8,null,"Whole Installation table A5:G18:"]
["Apr",200,7.15,101.8,40,7.15,22.7,null,null,null,"Apr",7.1,101.8,7.1,20.7,null,"Mean: for 1/2 hourly and daily periods calculate mean of values across all operational combustion lines for the month"]
["May",200,9.1499999999999986,75.900000000000006,40,9.1499999999999986,18.100000000000001,null,null,null,"May",9.1,58.6,9.1,18.100000000000001]
["Jun",200,12.55,140.1,40,12.55,24.4,null,null,null,"Jun",13.9,128.9,13.9,24.4]
["Jul",200,14.95,124,40,14.95,29.3,null,null,null,"Jul",16.5,94.3,16.5,29.3,null,"Maximum: for 1/2 hourly and daily periods use the highest value across all operational combustion lines for the month"]
["Aug",200,15.350000000000001,222.6,40,15.350000000000001,31.5,null,null,null,"Aug",17.8,222.6,17.8,31.5]
["Sep",200,17.25,98.6,40,17.25,34.4,null,null,null,"Sep",20.399999999999999,98.6,20.399999999999999,34.4]
["Oct",200,12.15,139.5,40,12.15,22.7,null,null,null,"Oct",12.8,139.5,12.8,22.7]
["Nov",200,12.95,144.69999999999999,40,12.95,21.5,null,null,null,"Nov",14.5,144.69999999999999,14.5,21.5]
["Dec",200,11.2,79.599999999999994,40,11.2,21.4,null,null,null,"Dec",12.2,79.599999999999994,12.2,19.899999999999999]
[null,null,null,null,null,null,null,null,null,null,"Annual",{"$f":"AVERAGE(L7:L18)","v":12.408333333333331},{"$f":"MAX(M7:M18)","v":222.6},{"$f":"AVERAGE(N7:N18)","v":12.408333333333331},{"$f":"MAX(O7:O18)","v":34.4}]
[]
[null,null,null,null,null,null,null,null,null,{"$f":"+A5","v":2024},"mg/Nm3","Monthly mean of half-hourly averages","Highest half- hourly average","Monthly mean of  daily averages","Highest daily average"]
[null,null,null,null,null,null,null,null,null,"A2","Jan",7.9,102.7,7.9,14.7]
[null,null,null,null,null,null,null,null,null,null,"Feb",7.4,123,7.4,13.4]
[null,null,null,null,null,null,null,null,null,null,"Mar",7.1,111.1,7.1,15.5]
[null,null,null,null,null,null,null,null,null,null,"Apr",7.2,93.6,7.2,22.7]
[null,null,null,null,null,null,null,null,null,null,"May",9.1999999999999993,75.900000000000006,9.1999999999999993,15.3]
[null,null,null,null,null,null,null,null,null,null,"Jun",11.2,140.1,11.2,19.5]
[null,null,null,null,null,null,null,null,null,null,"Jul",13.4,124,13.4,23]
[null,null,null,null,null,null,null,null,null,null,"Aug",12.9,192.1,12.9,27.4]
[null,null,null,null,null,null,null,null,null,null,"Sep",14.1,64.900000000000006,14.1,26.9]
[null,null,null,null,null,null,null,null,null,null,"Oct",11.5,56.6,11.5,19.100000000000001]
[null,null,null,null,null,null,null,null,null,null,"Nov",11.4,126.6,11.4,18.2]
[null,null,null,null,null,null,null,null,null,null,"Dec",10.199999999999999,70.400000000000006,10.199999999999999,21.4]
[null,null,null,null,null,null,null,null,null,null,"Annual",{"$f":"AVERAGE(L22:L33)","v":10.291666666666666},{"$f":"MAX(M22:M33)","v":192.1},{"$f":"AVERAGE(N22:N33)","v":10.291666666666666},{"$f":"MAX(O22:O33)","v":27.4}]
[]
[null,null,null,null,null,null,null,null,null,{"$f":"+A5","v":2024},"mg/Nm3","Monthly mean of half-hourly averages","Highest half- hourly average","Monthly mean of  daily averages","Highest daily average"]
[null,null,null,null,null,null,null,null,null,"A3","Jan"]
[null,null,null,null,null,null,null,null,null,null,"Feb"]
[null,null,null,null,null,null,null,null,null,null,"Mar"]
[null,null,null,null,null,null,null,null,null,null,"Apr"]
[null,null,null,null,null,null,null,null,null,null,"May"]
[null,null,null,null,null,null,null,null,null,null,"Jun"]
[null,null,null,null,null,null,null,null,null,null,"Jul"]
[null,null,null,null,null,null,null,null,null,null,"Aug"]
[null,null,null,null,null,null,null,null,null,null,"Sep"]
[null,null,null,null,null,null,null,null,null,null,"Oct"]
[null,null,null,null,null,null,null,null,null,null,"Nov"]
["Comments :",null,null,null,null,null,null,null,null,null,"Dec"]
[null,null,null,null,null,null,null,null,null,null,"Annual",{"$f":"AVERAGE(L37:L48)","v":{"$error":"#DIV/0!"}},{"$f":"MAX(M37:M48)","v":0},{"$f":"AVERAGE(N37:N48)","v":{"$error":"#DIV/0!"}},{"$f":"MAX(O37:O48)","v":0}]
[]
[null,null,null,null,null,null,null,null,null,{"$f":"+A5","v":2024},"mg/Nm3","Monthly mean of half-hourly averages","Highest half- hourly average","Monthly mean of  daily averages","Highest daily average"]
[null,null,null,null,null,null,null,null,null,"A4","Jan"]
[null,null,null,null,null,null,null,null,null,null,"Feb"]
[null,null,null,null,null,null,null,null,null,null,"Mar"]
[null,null,null,null,null,null,null,null,null,null,"Apr"]
[null,null,null,null,null,null,null,null,null,null,"May"]
[null,null,null,null,null,null,null,null,null,null,"Jun"]
[null,null,null,null,null,null,null,null,null,null,"Jul"]
[null,null,null,null,null,null,null,null,null,null,"Aug"]
[null,null,null,null,null,null,null,null,null,null,"Sep"]
[null,null,null,null,null,null,null,null,null,null,"Oct"]
[null,null,null,null,null,null,null,null,null,null,"Nov"]
[null,null,null,null,null,null,null,null,null,null,"Dec"]
[null,null,null,null,null,null,null,null,null,null,"Annual",{"$f":"AVERAGE(L52:L63)","v":{"$error":"#DIV/0!"}},{"$f":"MAX(M52:M63)","v":0},{"$f":"AVERAGE(N52:N63)","v":{"$error":"#DIV/0!"}},{"$f":"MAX(O52:O63)","v":0}]
[]
[null,null,null,null,null,null,null,null,null,{"$f":"+A5","v":2024},"mg/Nm3","Monthly mean of half-hourly averages","Highest half- hourly average","Monthly mean of  daily averages","Highest daily average"]
[null,null,null,null,null,null,null,null,null,"A5","Jan"]
[null,null,null,null,null,null,null,null,null,null,"Feb"]
[null,null,null,null,null,null,null,null,null,null,"Mar"]
[null,null,null,null,null,null,null,null,null,null,"Apr"]
[null,null,null,null,null,null,null,null,null,null,"May"]
[null,null,null,null,null,null,null,null,null,null,"Jun"]
[null,null,null,null,null,null,null,null,null,null,"Jul"]
[null,null,null,null,null,null,null,null,null,null,"Aug"]
[null,null,null,null,null,null,null,null,null,null,"Sep"]
[null,null,null,null,null,null,null,null,null,null,"Oct"]
[null,null,null,null,null,null,null,null,null,null,"Nov"]
[null,null,null,null,null,null,null,null,null,null,"Dec"]
[null,null,null,null,null,null,null,null,null,null,"Annual",{"$f":"AVERAGE(L67:L78)","v":{"$error":"#DIV/0!"}},{"$f":"MAX(M67:M78)","v":0},{"$f":"AVERAGE(N67:N78)","v":{"$error":"#DIV/0!"}},{"$f":"MAX(O67:O78)","v":0}]

{"sheet":"NOx","index":17,"n_rows":79,"n_cols":17,"rows_kept":79,"cut":false,"hidden":false,"merged":[[3,16,7,18],[9,16,11,18],[12,16,15,18],[66,9,78,9],[4,1,4,3],[4,4,4,6],[4,9,4,14],[6,9,18,9],[21,9,33,9],[36,9,48,9],[47,0,47,6],[48,0,51,6],[51,9,63,9],[18,4,18,6]]}
[{"$f":"+'Cover Page'!$B$29","v":"Annual Performance Report 2024"},null,null,null,{"$f":"+'Cover Page'!$B$33","v":"Edmonton EFW"}]
[]
["Monitoring of Oxides of Nitrogen emissions",null,null,"Whole Installation",null,null,"See  Notes in Cell Q3",null,null,{"$f":"+A3","v":"Monitoring of Oxides of Nitrogen emissions"},null,null,null,"Per Combustion Line",null,null,"Notes:"]
[null,null,null,null,null,null,null,null,null,null,null,null,null,null,null,null,"User to add logic to complete Whole installation, Table A5:G18. From the data in Per Combustion Line, Table J6:O79, subject to No. of lines installed"]
[{"$f":"+'Cover Page'!C39","v":2024},"1/2 Hourly Reference Periods",null,null,"Daily Reference Periods"]
["mg/Nm3","1/2 hourly NOx ELV","Monthly mean of half-hourly averages","Highest half- hourly average","Daily NOx ELV","Monthly mean of  daily averages","Highest daily average",null,null,{"$f":"+A5","v":2024},"mg/Nm3","Monthly mean of half-hourly averages","Highest half- hourly average","Monthly mean of  daily averages","Highest daily average"]
["Jan",400,{"$f":"AVERAGE(L7,L22)","v":156.80000000000001},{"$f":"MAX(M7,M22)","v":235},180,{"$f":"AVERAGE(N7,N22)","v":156.80000000000001},{"$f":"MAX(O7,O22)","v":173.3},null,null,"A1","Jan",154.30000000000001,229.7,154.30000000000001,172.4]
["Feb",400,{"$f":"AVERAGE(L8,L23)","v":168.05},{"$f":"MAX(M8,M23)","v":224},180,{"$f":"AVERAGE(N8,N23)","v":168.05},{"$f":"MAX(O8,O23)","v":178.5},null,null,null,"Feb",170.1,224,170.1,178.5]
["Mar",400,170.55,274.89999999999998,180,170.55,178.6,null,null,null,"Mar",172.4,274.89999999999998,172.4,178.6,null,"Whole Installation table A5:G18:"]
["Apr",400,169.5,296.10000000000002,180,169.5,183.3,null,null,null,"Apr",171,296.10000000000002,171,183.3,null,"Mean: for 1/2 hourly and daily periods calculate mean of values across all operational combustion lines for the month"]
["May",400,170.55,223.1,180,170.55,178.1,null,null,null,"May",172,223.1,172,178.1]
["Jun",400,165.45,222.5,180,165.45,177,null,null,null,"Jun",161.69999999999999,219.3,161.69999999999999,176.6]
["Jul",400,165.10000000000002,223.9,180,165.10000000000002,176.5,null,null,null,"Jul",166.3,222.8,166.3,176.4,null,"Maximum: for 1/2 hourly and daily periods use the highest value across all operational combustion lines for the month"]
["Aug",400,168.05,273,180,168.05,178.9,null,null,null,"Aug",169,258.7,169,177.2]
["Sep",400,167.45,230.2,180,167.45,177.3,null,null,null,"Sep",166.7,220.3,166.7,177.3]
["Oct",400,165.9,251.1,180,165.9,177,null,null,null,"Oct",165,251.1,165,177]
["Nov",400,161.9,216.1,180,161.9,173.8,null,null,null,"Nov",161,216.1,161,173.8]
["Dec",400,165.3,226.5,180,165.3,176.6,null,null,null,"Dec",165.3,226.5,165.3,174.6]
[null,null,null,null,null,null,null,null,null,null,"Annual",{"$f":"AVERAGE(L7:L18)","v":166.23333333333332},{"$f":"MAX(M7:M18)","v":296.10000000000002},{"$f":"AVERAGE(N7:N18)","v":166.23333333333332},{"$f":"MAX(O7:O18)","v":183.3}]
[]
[null,null,null,null,null,null,null,null,null,{"$f":"+A5","v":2024},"mg/Nm3","Monthly mean of half-hourly averages","Highest half- hourly average","Monthly mean of  daily averages","Highest daily average"]
[null,null,null,null,null,null,null,null,null,"A2","Jan",159.30000000000001,235,159.30000000000001,173.3]
[null,null,null,null,null,null,null,null,null,null,"Feb",166,210,166,174.4]
[null,null,null,null,null,null,null,null,null,null,"Mar",168.7,232.3,168.7,177.9]
[null,null,null,null,null,null,null,null,null,null,"Apr",168,252.5,168,176.4]
[null,null,null,null,null,null,null,null,null,null,"May",169.1,222.4,169.1,176.3]
[null,null,null,null,null,null,null,null,null,null,"Jun",169.2,222.5,169.2,177]
[null,null,null,null,null,null,null,null,null,null,"Jul",163.9,223.9,163.9,176.5]
[null,null,null,null,null,null,null,null,null,null,"Aug",167.1,273,167.1,178.9]
[null,null,null,null,null,null,null,null,null,null,"Sep",168.2,230.2,168.2,176.6]
[null,null,null,null,null,null,null,null,null,null,"Oct",166.8,241,166.8,176.2]
[null,null,null,null,null,null,null,null,null,null,"Nov",162.80000000000001,200.1,162.80000000000001,173.3]
[null,null,null,null,null,null,null,null,null,null,"Dec",165.3,226.5,165.3,176.6]
[null,null,null,null,null,null,null,null,null,null,"Annual",{"$f":"AVERAGE(L22:L33)","v":166.2},{"$f":"MAX(M22:M33)","v":273},{"$f":"AVERAGE(N22:N33)","v":166.2},{"$f":"MAX(O22:O33)","v":178.9}]
[]
[null,null,null,null,null,null,null,null,null,{"$f":"+A5","v":2024},"mg/Nm3","Monthly mean of half-hourly averages","Highest half- hourly average","Monthly mean of  daily averages","Highest daily average"]
[null,null,null,null,null,null,null,null,null,"A3","Jan"]
[null,null,null,null,null,null,null,null,null,null,"Feb"]
[null,null,null,null,null,null,null,null,null,null,"Mar"]
[null,null,null,null,null,null,null,null,null,null,"Apr"]
[null,null,null,null,null,null,null,null,null,null,"May"]
[null,null,null,null,null,null,null,null,null,null,"Jun"]
[null,null,null,null,null,null,null,null,null,null,"Jul"]
[null,null,null,null,null,null,null,null,null,null,"Aug"]
[null,null,null,null,null,null,null,null,null,null,"Sep"]
[null,null,null,null,null,null,null,null,null,null,"Oct"]
[null,null,null,null,null,null,null,null,null,null,"Nov"]
["Comments :",null,null,null,null,null,null,null,null,null,"Dec"]
[null,null,null,null,null,null,null,null,null,null,"Annual",{"$f":"AVERAGE(L37:L48)","v":{"$error":"#DIV/0!"}},{"$f":"MAX(M37:M48)","v":0},{"$f":"AVERAGE(N37:N48)","v":{"$error":"#DIV/0!"}},{"$f":"MAX(O37:O48)","v":0}]
[]
[null,null,null,null,null,null,null,null,null,{"$f":"+A5","v":2024},"mg/Nm3","Monthly mean of half-hourly averages","Highest half- hourly average","Monthly mean of  daily averages","Highest daily average"]
[null,null,null,null,null,null,null,null,null,"A4","Jan"]
[null,null,null,null,null,null,null,null,null,null,"Feb"]
[null,null,null,null,null,null,null,null,null,null,"Mar"]
[null,null,null,null,null,null,null,null,null,null,"Apr"]
[null,null,null,null,null,null,null,null,null,null,"May"]
[null,null,null,null,null,null,null,null,null,null,"Jun"]
[null,null,null,null,null,null,null,null,null,null,"Jul"]
[null,null,null,null,null,null,null,null,null,null,"Aug"]
[null,null,null,null,null,null,null,null,null,null,"Sep"]
[null,null,null,null,null,null,null,null,null,null,"Oct"]
[null,null,null,null,null,null,null,null,null,null,"Nov"]
[null,null,null,null,null,null,null,null,null,null,"Dec"]
[null,null,null,null,null,null,null,null,null,null,"Annual",{"$f":"AVERAGE(L52:L63)","v":{"$error":"#DIV/0!"}},{"$f":"MAX(M52:M63)","v":0},{"$f":"AVERAGE(N52:N63)","v":{"$error":"#DIV/0!"}},{"$f":"MAX(O52:O63)","v":0}]
[]
[null,null,null,null,null,null,null,null,null,{"$f":"+A5","v":2024},"mg/Nm3","Monthly mean of half-hourly averages","Highest half- hourly average","Monthly mean of  daily averages","Highest daily average"]
[null,null,null,null,null,null,null,null,null,"A5","Jan"]
[null,null,null,null,null,null,null,null,null,null,"Feb"]
[null,null,null,null,null,null,null,null,null,null,"Mar"]
[null,null,null,null,null,null,null,null,null,null,"Apr"]
[null,null,null,null,null,null,null,null,null,null,"May"]
[null,null,null,null,null,null,null,null,null,null,"Jun"]
[null,null,null,null,null,null,null,null,null,null,"Jul"]
[null,null,null,null,null,null,null,null,null,null,"Aug"]
[null,null,null,null,null,null,null,null,null,null,"Sep"]
[null,null,null,null,null,null,null,null,null,null,"Oct"]
[null,null,null,null,null,null,null,null,null,null,"Nov"]
[null,null,null,null,null,null,null,null,null,null,"Dec"]
[null,null,null,null,null,null,null,null,null,null,"Annual",{"$f":"AVERAGE(L67:L78)","v":{"$error":"#DIV/0!"}},{"$f":"MAX(M67:M78)","v":0},{"$f":"AVERAGE(N67:N78)","v":{"$error":"#DIV/0!"}},{"$f":"MAX(O67:O78)","v":0}]

{"sheet":"TOC","index":18,"n_rows":79,"n_cols":17,"rows_kept":79,"cut":false,"hidden":false,"merged":[[3,16,7,18],[9,16,11,18],[12,16,15,18],[66,9,78,9],[4,1,4,3],[4,4,4,6],[4,9,4,14],[6,9,18,9],[21,9,33,9],[36,9,48,9],[47,0,47,6],[48,0,51,6],[51,9,63,9]]}
[{"$f":"+'Cover Page'!$B$29","v":"Annual Performance Report 2024"},null,null,null,{"$f":"+'Cover Page'!$B$33","v":"Edmonton EFW"}]
[]
["Monitoring of Total organic carbon emissions",null,null,"Whole Installation",null,null,"See  Notes in Cell Q3",null,null,{"$f":"+A3","v":"Monitoring of Total organic carbon emissions"},null,null,null,"Per Combustion Line",null,null,"Notes:"]
[null,null,null,null,null,null,null,null,null,null,null,null,null,null,null,null,"User to add logic to complete Whole installation, Table A5:G18. From the data in Per Combustion Line, Table J6:O79, subject to No. of lines installed"]
[{"$f":"+'Cover Page'!C39","v":2024},"1/2 Hourly Reference Periods",null,null,"Daily Reference Periods"]
["mg/Nm3","1/2 hourly TOC ELV","Monthly mean of half-hourly averages","Highest half- hourly average","Daily TOC ELV","Monthly mean of  daily averages","Highest daily average",null,null,{"$f":"+A5","v":2024},"mg/Nm3","Monthly mean of half-hourly averages","Highest half- hourly average","Monthly mean of  daily averages","Highest daily average"]
["Jan",20,{"$f":"AVERAGE(L7,L22)","v":1.2000000000000002},{"$f":"MAX(M7,M22)","v":69.2},10,{"$f":"AVERAGE(N7,N22)","v":1.2000000000000002},{"$f":"MAX(O7,O22)","v":9},null,null,"A1","Jan",0.8,11.1,0.8,2]
["Feb",20,{"$f":"AVERAGE(L8,L23)","v":1.2},{"$f":"MAX(M8,M23)","v":17.100000000000001},10,{"$f":"AVERAGE(N8,N23)","v":1.2},{"$f":"MAX(O8,O23)","v":2.6},null,null,null,"Feb",1.4,15.6,1.4,2.2999999999999998]
["Mar",20,1.2000000000000002,24.1,10,1.2000000000000002,3,null,null,null,"Mar",1.3,13.4,1.3,2.2000000000000002,null,"Whole Installation table A5:G18:"]
["Apr",20,1.2000000000000002,44,10,1.2000000000000002,2.5,null,null,null,"Apr",1.3,44,1.3,2.4,null,"Mean: for 1/2 hourly and daily periods calculate mean of values across all operational combustion lines for the month"]
["May",20,1.45,22.4,10,1.45,4.9000000000000004,null,null,null,"May",1.4,11.9,1.4,1.9]
["Jun",20,1.45,35.200000000000003,10,1.45,20.100000000000001,null,null,null,"Jun",1.4,20.100000000000001,1.4,20.100000000000001]
["Jul",20,1.3,27,10,1.3,2.9,null,null,null,"Jul",1.7,27,1.7,2.9,null,"Maximum: for 1/2 hourly and daily periods use the highest value across all operational combustion lines for the month"]
["Aug",20,1.4,137.30000000000001,10,1.4,8.1,null,null,null,"Aug",1.9,137.30000000000001,1.9,8.1]
["Sep",20,1.25,49.3,10,1.25,2.7,null,null,null,"Sep",1.7,49.3,1.7,2.7]
["Oct",20,1.1499999999999999,10.3,10,1.1499999999999999,2,null,null,null,"Oct",1.5,10.3,1.5,2]
["Nov",20,1.4,28.5,10,1.4,3.5,null,null,null,"Nov",1.5,17.8,1.5,3.1]
["Dec",20,1.1499999999999999,27,10,1.1499999999999999,2.2999999999999998,null,null,null,"Dec",1.4,27,1.4,2.2999999999999998]
[null,null,null,null,null,null,null,null,null,null,"Annual",{"$f":"AVERAGE(L7:L18)","v":1.4416666666666664},{"$f":"MAX(M7:M18)","v":137.30000000000001},{"$f":"AVERAGE(N7:N18)","v":1.4416666666666664},{"$f":"MAX(O7:O18)","v":20.100000000000001}]
[]
[null,null,null,null,null,null,null,null,null,{"$f":"+A5","v":2024},"mg/Nm3","Monthly mean of half-hourly averages","Highest half- hourly average","Monthly mean of  daily averages","Highest daily average"]
[null,null,null,null,null,null,null,null,null,"A2","Jan",1.6,69.2,1.6,9]
[null,null,null,null,null,null,null,null,null,null,"Feb",1,17.100000000000001,1,2.6]
[null,null,null,null,null,null,null,null,null,null,"Mar",1.1000000000000001,24.1,1.1000000000000001,3]
[null,null,null,null,null,null,null,null,null,null,"Apr",1.1000000000000001,20.9,1.1000000000000001,2.5]
[null,null,null,null,null,null,null,null,null,null,"May",1.5,22.4,1.5,4.9000000000000004]
[null,null,null,null,null,null,null,null,null,null,"Jun",1.5,35.200000000000003,1.5,2.4]
[null,null,null,null,null,null,null,null,null,null,"Jul",0.9,22.6,0.9,1.9]
[null,null,null,null,null,null,null,null,null,null,"Aug",0.9,26.1,0.9,2.2000000000000002]
[null,null,null,null,null,null,null,null,null,null,"Sep",0.8,12.4,0.8,1.4]
[null,null,null,null,null,null,null,null,null,null,"Oct",0.8,9.6,0.8,1.3]
[null,null,null,null,null,null,null,null,null,null,"Nov",1.3,28.5,1.3,3.5]
[null,null,null,null,null,null,null,null,null,null,"Dec",0.9,17,0.9,2.2000000000000002]
[null,null,null,null,null,null,null,null,null,null,"Annual",{"$f":"AVERAGE(L22:L33)","v":1.1166666666666669},{"$f":"MAX(M22:M33)","v":69.2},{"$f":"AVERAGE(N22:N33)","v":1.1166666666666669},{"$f":"MAX(O22:O33)","v":9}]
[]
[null,null,null,null,null,null,null,null,null,{"$f":"+A5","v":2024},"mg/Nm3","Monthly mean of half-hourly averages","Highest half- hourly average","Monthly mean of  daily averages","Highest daily average"]
[null,null,null,null,null,null,null,null,null,"A3","Jan"]
[null,null,null,null,null,null,null,null,null,null,"Feb"]
[null,null,null,null,null,null,null,null,null,null,"Mar"]
[null,null,null,null,null,null,null,null,null,null,"Apr"]
[null,null,null,null,null,null,null,null,null,null,"May"]
[null,null,null,null,null,null,null,null,null,null,"Jun"]
[null,null,null,null,null,null,null,null,null,null,"Jul"]
[null,null,null,null,null,null,null,null,null,null,"Aug"]
[null,null,null,null,null,null,null,null,null,null,"Sep"]
[null,null,null,null,null,null,null,null,null,null,"Oct"]
[null,null,null,null,null,null,null,null,null,null,"Nov"]
["Comments :",null,null,null,null,null,null,null,null,null,"Dec"]
[null,null,null,null,null,null,null,null,null,null,"Annual",{"$f":"AVERAGE(L37:L48)","v":{"$error":"#DIV/0!"}},{"$f":"MAX(M37:M48)","v":0},{"$f":"AVERAGE(N37:N48)","v":{"$error":"#DIV/0!"}},{"$f":"MAX(O37:O48)","v":0}]
[]
[null,null,null,null,null,null,null,null,null,{"$f":"+A5","v":2024},"mg/Nm3","Monthly mean of half-hourly averages","Highest half- hourly average","Monthly mean of  daily averages","Highest daily average"]
[null,null,null,null,null,null,null,null,null,"A4","Jan"]
[null,null,null,null,null,null,null,null,null,null,"Feb"]
[null,null,null,null,null,null,null,null,null,null,"Mar"]
[null,null,null,null,null,null,null,null,null,null,"Apr"]
[null,null,null,null,null,null,null,null,null,null,"May"]
[null,null,null,null,null,null,null,null,null,null,"Jun"]
[null,null,null,null,null,null,null,null,null,null,"Jul"]
[null,null,null,null,null,null,null,null,null,null,"Aug"]
[null,null,null,null,null,null,null,null,null,null,"Sep"]
[null,null,null,null,null,null,null,null,null,null,"Oct"]
[null,null,null,null,null,null,null,null,null,null,"Nov"]
[null,null,null,null,null,null,null,null,null,null,"Dec"]
[null,null,null,null,null,null,null,null,null,null,"Annual",{"$f":"AVERAGE(L52:L63)","v":{"$error":"#DIV/0!"}},{"$f":"MAX(M52:M63)","v":0},{"$f":"AVERAGE(N52:N63)","v":{"$error":"#DIV/0!"}},{"$f":"MAX(O52:O63)","v":0}]
[]
[null,null,null,null,null,null,null,null,null,{"$f":"+A5","v":2024},"mg/Nm3","Monthly mean of half-hourly averages","Highest half- hourly average","Monthly mean of  daily averages","Highest daily average"]
[null,null,null,null,null,null,null,null,null,"A5","Jan"]
[null,null,null,null,null,null,null,null,null,null,"Feb"]
[null,null,null,null,null,null,null,null,null,null,"Mar"]
[null,null,null,null,null,null,null,null,null,null,"Apr"]
[null,null,null,null,null,null,null,null,null,null,"May"]
[null,null,null,null,null,null,null,null,null,null,"Jun"]
[null,null,null,null,null,null,null,null,null,null,"Jul"]
[null,null,null,null,null,null,null,null,null,null,"Aug"]
[null,null,null,null,null,null,null,null,null,null,"Sep"]
[null,null,null,null,null,null,null,null,null,null,"Oct"]
[null,null,null,null,null,null,null,null,null,null,"Nov"]
[null,null,null,null,null,null,null,null,null,null,"Dec"]
[null,null,null,null,null,null,null,null,null,null,"Annual",{"$f":"AVERAGE(L67:L78)","v":{"$error":"#DIV/0!"}},{"$f":"MAX(M67:M78)","v":0},{"$f":"AVERAGE(N67:N78)","v":{"$error":"#DIV/0!"}},{"$f":"MAX(O67:O78)","v":0}]

{"sheet":"Particulates","index":19,"n_rows":79,"n_cols":17,"rows_kept":79,"cut":false,"hidden":false,"merged":[[4,16,8,18],[10,16,12,18],[13,16,16,18],[66,9,78,9],[4,1,4,3],[4,4,4,6],[4,9,4,14],[6,9,18,9],[21,9,33,9],[36,9,48,9],[47,0,47,6],[48,0,51,6],[51,9,63,9],[18,4,18,6]]}
[{"$f":"+'Cover Page'!$B$29","v":"Annual Performance Report 2024"},null,null,null,{"$f":"+'Cover Page'!$B$33","v":"Edmonton EFW"}]
[]
["Monitoring of Particulate matter emissions",null,null,"Whole Installation",null,null,"See  Notes in Cell Q3",null,null,{"$f":"+A3","v":"Monitoring of Particulate matter emissions"},null,null,null,"Per Combustion Line",null,null,"Notes:"]
[]
[{"$f":"+'Cover Page'!C39","v":2024},"1/2 Hourly Reference Periods",null,null,"Daily Reference Periods",null,null,null,null,null,null,null,null,null,null,null,"User to add logic to complete Whole installation, Table A5:G18. From the data in Per Combustion Line, Table J6:O79, subject to No. of lines installed"]
["mg/Nm3","1/2 hourly PM ELV","Monthly mean of half-hourly averages","Highest half- hourly average","Daily PM ELV","Monthly mean of  daily averages","Highest daily average",null,null,{"$f":"+A5","v":2024},"mg/Nm3","Monthly mean of half-hourly averages","Highest half- hourly average","Monthly mean of  daily averages","Highest daily average"]
["Jan",30,{"$f":"AVERAGE(L7,L22)","v":1.45},{"$f":"MAX(M7,M22)","v":10.4},5,{"$f":"AVERAGE(N7,N22)","v":1.45},{"$f":"MAX(O7,O22)","v":2.4},null,null,"A1","Jan",1.7,6.9,1.7,2.4]
["Feb",30,{"$f":"AVERAGE(L8,L23)","v":0.75},{"$f":"MAX(M8,M23)","v":4},5,{"$f":"AVERAGE(N8,N23)","v":0.75},{"$f":"MAX(O8,O23)","v":1.3},null,null,null,"Feb",0.9,4,0.9,1.3]
["Mar",30,0.75,3.5,5,0.75,1.3,null,null,null,"Mar",0.9,3.5,0.9,1.3]
["Apr",30,0.6,6.4,5,0.6,1.4,null,null,null,"Apr",0.6,6.4,0.6,1.4,null,"Whole Installation table A5:G18:"]
["May",30,0.5,8.9,5,0.5,1,null,null,null,"May",0.5,1.2,0.5,0.5,null,"Mean: for 1/2 hourly and daily periods calculate mean of values across all operational combustion lines for the month"]
["Jun",30,0.45,0.8,5,0.45,0.5,null,null,null,"Jun",0.5,0.8,0.5,0.5]
["Jul",30,0.5,2.7,5,0.5,0.6,null,null,null,"Jul",0.5,1.1000000000000001,0.5,0.6]
["Aug",30,0.45,14.2,5,0.45,1.3,null,null,null,"Aug",0.5,1.9,0.5,0.6,null,"Maximum: for 1/2 hourly and daily periods use the highest value across all operational combustion lines for the month"]
["Sep",30,0.44999999999999996,2.4,5,0.44999999999999996,0.7,null,null,null,"Sep",0.6,2.4,0.6,0.7]
["Oct",30,0.44999999999999996,32.5,5,0.44999999999999996,2.6,null,null,null,"Oct",0.6,32.5,0.6,2.6]
["Nov",30,0.45,29.8,5,0.45,0.9,null,null,null,"Nov",0.5,29.8,0.5,0.9]
["Dec",30,0.45,1.2,5,0.45,0.6,null,null,null,"Dec",0.5,1.2,0.5,0.6]
[null,null,null,null,null,null,null,null,null,null,"Annual",{"$f":"AVERAGE(L7:L18)","v":0.69166666666666654},{"$f":"MAX(M7:M18)","v":32.5},{"$f":"AVERAGE(N7:N18)","v":0.69166666666666654},{"$f":"MAX(O7:O18)","v":2.6}]
[]
[null,null,null,null,null,null,null,null,null,{"$f":"+A5","v":2024},"mg/Nm3","Monthly mean of half-hourly averages","Highest half- hourly average","Monthly mean of  daily averages","Highest daily average"]
[null,null,null,null,null,null,null,null,null,"A2","Jan",1.2,10.4,1.2,2.4]
[null,null,null,null,null,null,null,null,null,null,"Feb",0.6,3.1,0.6,0.8]
[null,null,null,null,null,null,null,null,null,null,"Mar",0.6,1.8,0.6,0.8]
[null,null,null,null,null,null,null,null,null,null,"Apr",0.6,3.1,0.6,1.1000000000000001]
[null,null,null,null,null,null,null,null,null,null,"May",0.5,8.9,0.5,1]
[null,null,null,null,null,null,null,null,null,null,"Jun",0.4,0.6,0.4,0.5]
[null,null,null,null,null,null,null,null,null,null,"Jul",0.5,2.7,0.5,0.5]
[null,null,null,null,null,null,null,null,null,null,"Aug",0.4,14.2,0.4,1.3]
[null,null,null,null,null,null,null,null,null,null,"Sep",0.3,0.5,0.3,0.3]
[null,null,null,null,null,null,null,null,null,null,"Oct",0.3,0.5,0.3,0.5]
[null,null,null,null,null,null,null,null,null,null,"Nov",0.4,1.3,0.4,0.5]
[null,null,null,null,null,null,null,null,null,null,"Dec",0.4,1.1000000000000001,0.4,0.6]
[null,null,null,null,null,null,null,null,null,null,"Annual",{"$f":"AVERAGE(L22:L33)","v":0.51666666666666672},{"$f":"MAX(M22:M33)","v":14.2},{"$f":"AVERAGE(N22:N33)","v":0.51666666666666672},{"$f":"MAX(O22:O33)","v":2.4}]
[]
[null,null,null,null,null,null,null,null,null,{"$f":"+A5","v":2024},"mg/Nm3","Monthly mean of half-hourly averages","Highest half- hourly average","Monthly mean of  daily averages","Highest daily average"]
[null,null,null,null,null,null,null,null,null,"A3","Jan"]
[null,null,null,null,null,null,null,null,null,null,"Feb"]
[null,null,null,null,null,null,null,null,null,null,"Mar"]
[null,null,null,null,null,null,null,null,null,null,"Apr"]
[null,null,null,null,null,null,null,null,null,null,"May"]
[null,null,null,null,null,null,null,null,null,null,"Jun"]
[null,null,null,null,null,null,null,null,null,null,"Jul"]
[null,null,null,null,null,null,null,null,null,null,"Aug"]
[null,null,null,null,null,null,null,null,null,null,"Sep"]
[null,null,null,null,null,null,null,null,null,null,"Oct"]
[null,null,null,null,null,null,null,null,null,null,"Nov"]
["Comments :",null,null,null,null,null,null,null,null,null,"Dec"]
[null,null,null,null,null,null,null,null,null,null,"Annual",{"$f":"AVERAGE(L37:L48)","v":{"$error":"#DIV/0!"}},{"$f":"MAX(M37:M48)","v":0},{"$f":"AVERAGE(N37:N48)","v":{"$error":"#DIV/0!"}},{"$f":"MAX(O37:O48)","v":0}]
[]
[null,null,null,null,null,null,null,null,null,{"$f":"+A5","v":2024},"mg/Nm3","Monthly mean of half-hourly averages","Highest half- hourly average","Monthly mean of  daily averages","Highest daily average"]
[null,null,null,null,null,null,null,null,null,"A4","Jan"]
[null,null,null,null,null,null,null,null,null,null,"Feb"]
[null,null,null,null,null,null,null,null,null,null,"Mar"]
[null,null,null,null,null,null,null,null,null,null,"Apr"]
[null,null,null,null,null,null,null,null,null,null,"May"]
[null,null,null,null,null,null,null,null,null,null,"Jun"]
[null,null,null,null,null,null,null,null,null,null,"Jul"]
[null,null,null,null,null,null,null,null,null,null,"Aug"]
[null,null,null,null,null,null,null,null,null,null,"Sep"]
[null,null,null,null,null,null,null,null,null,null,"Oct"]
[null,null,null,null,null,null,null,null,null,null,"Nov"]
[null,null,null,null,null,null,null,null,null,null,"Dec"]
[null,null,null,null,null,null,null,null,null,null,"Annual",{"$f":"AVERAGE(L52:L63)","v":{"$error":"#DIV/0!"}},{"$f":"MAX(M52:M63)","v":0},{"$f":"AVERAGE(N52:N63)","v":{"$error":"#DIV/0!"}},{"$f":"MAX(O52:O63)","v":0}]
[]
[null,null,null,null,null,null,null,null,null,{"$f":"+A5","v":2024},"mg/Nm3","Monthly mean of half-hourly averages","Highest half- hourly average","Monthly mean of  daily averages","Highest daily average"]
[null,null,null,null,null,null,null,null,null,"A5","Jan"]
[null,null,null,null,null,null,null,null,null,null,"Feb"]
[null,null,null,null,null,null,null,null,null,null,"Mar"]
[null,null,null,null,null,null,null,null,null,null,"Apr"]
[null,null,null,null,null,null,null,null,null,null,"May"]
[null,null,null,null,null,null,null,null,null,null,"Jun"]
[null,null,null,null,null,null,null,null,null,null,"Jul"]
[null,null,null,null,null,null,null,null,null,null,"Aug"]
[null,null,null,null,null,null,null,null,null,null,"Sep"]
[null,null,null,null,null,null,null,null,null,null,"Oct"]
[null,null,null,null,null,null,null,null,null,null,"Nov"]
[null,null,null,null,null,null,null,null,null,null,"Dec"]
[null,null,null,null,null,null,null,null,null,null,"Annual",{"$f":"AVERAGE(L67:L78)","v":{"$error":"#DIV/0!"}},{"$f":"MAX(M67:M78)","v":0},{"$f":"AVERAGE(N67:N78)","v":{"$error":"#DIV/0!"}},{"$f":"MAX(O67:O78)","v":0}]

{"sheet":"CO 0.5 hourly","index":20,"n_rows":82,"n_cols":17,"rows_kept":82,"cut":false,"hidden":false,"merged":[[4,0,5,6],[6,16,10,18],[12,16,14,18],[15,16,18,18],[69,9,81,9],[7,1,7,3],[7,4,7,6],[7,9,7,14],[9,9,21,9],[24,9,36,9],[39,9,51,9],[50,0,50,6],[51,0,54,6],[54,9,66,9]]}
[{"$f":"+'Cover Page'!$B$29","v":"Annual Performance Report 2024"},null,null,null,{"$f":"+'Cover Page'!$B$33","v":"Edmonton EFW"}]
[]
["Monitoring of Carbon Monoxide (half hourly)",null,null,"Whole Installation",null,null,"See  Notes in Cell Q3",null,null,{"$f":"+A3","v":"Monitoring of Carbon Monoxide (half hourly)"},null,null,null,"Per Combustion Line",null,null,"Notes:"]
[]
["Please complete this tab for your plant if you have 1/2 hourly CO ELVs; otherwise, leave it blank and complete the CO 95% 10 min tab"]
[]
[null,null,null,null,null,null,null,null,null,null,null,null,null,null,null,null,"User to add logic to complete Whole installation, Table A5:G18. From the data in Per Combustion Line, Table J6:O79, subject to No. of lines installed"]
[{"$f":"+'Cover Page'!C39","v":2024},"1/2 Hourly Reference Periods",null,null,"Daily Reference Periods"]
["mg/Nm3","1/2 hourly CO ELV","Monthly mean of half-hourly averages","Highest half- hourly average","Daily CO ELV","Monthly mean of  daily averages","Highest daily average",null,null,{"$f":"+A8","v":2024},"mg/Nm3","Monthly mean of half-hourly averages","Highest half- hourly average","Monthly mean of  daily averages","Highest daily average"]
["Jan",100,null,null,50,null,null,null,null,"A1","Jan"]
["Feb",{"$f":"+B10","v":100},null,null,{"$f":"+E10","v":50},null,null,null,null,null,"Feb"]
["Mar",{"$f":"+B11","v":100},null,null,{"$f":"+E11","v":50},null,null,null,null,null,"Mar",null,null,null,null,null,"Whole Installation table A5:G18:"]
["Apr",100,null,null,50,null,null,null,null,null,"Apr",null,null,null,null,null,"Mean: for 1/2 hourly and daily periods calculate mean of values across all operational combustion lines for the month"]
["May",100,null,null,50,null,null,null,null,null,"May"]
["Jun",100,null,null,50,null,null,null,null,null,"Jun"]
["Jul",100,null,null,50,null,null,null,null,null,"Jul",null,null,null,null,null,"Maximum: for 1/2 hourly and daily periods use the highest value across all operational combustion lines for the month"]
["Aug",100,null,null,50,null,null,null,null,null,"Aug"]
["Sep",100,null,null,50,null,null,null,null,null,"Sep"]
["Oct",100,null,null,50,null,null,null,null,null,"Oct"]
["Nov",100,null,null,50,null,null,null,null,null,"Nov"]
["Dec",100,null,null,50,null,null,null,null,null,"Dec"]
[null,null,null,null,null,null,null,null,null,null,"Annual",{"$f":"AVERAGE(L10:L21)","v":{"$error":"#DIV/0!"}},{"$f":"MAX(M10:M21)","v":0},{"$f":"AVERAGE(N10:N21)","v":{"$error":"#DIV/0!"}},{"$f":"MAX(O10:O21)","v":0}]
[]
[null,null,null,null,null,null,null,null,null,{"$f":"+A8","v":2024},"mg/Nm3","Monthly mean of half-hourly averages","Highest half- hourly average","Monthly mean of  daily averages","Highest daily average"]
[null,null,null,null,null,null,null,null,null,"A2","Jan"]
[null,null,null,null,null,null,null,null,null,null,"Feb"]
[null,null,null,null,null,null,null,null,null,null,"Mar"]
[null,null,null,null,null,null,null,null,null,null,"Apr"]
[null,null,null,null,null,null,null,null,null,null,"May"]
[null,null,null,null,null,null,null,null,null,null,"Jun"]
[null,null,null,null,null,null,null,null,null,null,"Jul"]
[null,null,null,null,null,null,null,null,null,null,"Aug"]
[null,null,null,null,null,null,null,null,null,null,"Sep"]
[null,null,null,null,null,null,null,null,null,null,"Oct"]
[null,null,null,null,null,null,null,null,null,null,"Nov"]
[null,null,null,null,null,null,null,null,null,null,"Dec"]
[null,null,null,null,null,null,null,null,null,null,"Annual",{"$f":"AVERAGE(L25:L36)","v":{"$error":"#DIV/0!"}},{"$f":"MAX(M25:M36)","v":0},{"$f":"AVERAGE(N25:N36)","v":{"$error":"#DIV/0!"}},{"$f":"MAX(O25:O36)","v":0}]
[]
[null,null,null,null,null,null,null,null,null,{"$f":"+A8","v":2024},"mg/Nm3","Monthly mean of half-hourly averages","Highest half- hourly average","Monthly mean of  daily averages","Highest daily average"]
[null,null,null,null,null,null,null,null,null,"A3","Jan"]
[null,null,null,null,null,null,null,null,null,null,"Feb"]
[null,null,null,null,null,null,null,null,null,null,"Mar"]
[null,null,null,null,null,null,null,null,null,null,"Apr"]
[null,null,null,null,null,null,null,null,null,null,"May"]
[null,null,null,null,null,null,null,null,null,null,"Jun"]
[null,null,null,null,null,null,null,null,null,null,"Jul"]
[null,null,null,null,null,null,null,null,null,null,"Aug"]
[null,null,null,null,null,null,null,null,null,null,"Sep"]
[null,null,null,null,null,null,null,null,null,null,"Oct"]
[null,null,null,null,null,null,null,null,null,null,"Nov"]
["Comments :",null,null,null,null,null,null,null,null,null,"Dec"]
[null,null,null,null,null,null,null,null,null,null,"Annual",{"$f":"AVERAGE(L40:L51)","v":{"$error":"#DIV/0!"}},{"$f":"MAX(M40:M51)","v":0},{"$f":"AVERAGE(N40:N51)","v":{"$error":"#DIV/0!"}},{"$f":"MAX(O40:O51)","v":0}]
[]
[null,null,null,null,null,null,null,null,null,{"$f":"+A8","v":2024},"mg/Nm3","Monthly mean of half-hourly averages","Highest half- hourly average","Monthly mean of  daily averages","Highest daily average"]
[null,null,null,null,null,null,null,null,null,"A4","Jan"]
[null,null,null,null,null,null,null,null,null,null,"Feb"]
[null,null,null,null,null,null,null,null,null,null,"Mar"]
[null,null,null,null,null,null,null,null,null,null,"Apr"]
[null,null,null,null,null,null,null,null,null,null,"May"]
[null,null,null,null,null,null,null,null,null,null,"Jun"]
[null,null,null,null,null,null,null,null,null,null,"Jul"]
[null,null,null,null,null,null,null,null,null,null,"Aug"]
[null,null,null,null,null,null,null,null,null,null,"Sep"]
[null,null,null,null,null,null,null,null,null,null,"Oct"]
[null,null,null,null,null,null,null,null,null,null,"Nov"]
[null,null,null,null,null,null,null,null,null,null,"Dec"]
[null,null,null,null,null,null,null,null,null,null,"Annual",{"$f":"AVERAGE(L55:L66)","v":{"$error":"#DIV/0!"}},{"$f":"MAX(M55:M66)","v":0},{"$f":"AVERAGE(N55:N66)","v":{"$error":"#DIV/0!"}},{"$f":"MAX(O55:O66)","v":0}]
[]
[null,null,null,null,null,null,null,null,null,{"$f":"+A8","v":2024},"mg/Nm3","Monthly mean of half-hourly averages","Highest half- hourly average","Monthly mean of  daily averages","Highest daily average"]
[null,null,null,null,null,null,null,null,null,"A5","Jan"]
[null,null,null,null,null,null,null,null,null,null,"Feb"]
[null,null,null,null,null,null,null,null,null,null,"Mar"]
[null,null,null,null,null,null,null,null,null,null,"Apr"]
[null,null,null,null,null,null,null,null,null,null,"May"]
[null,null,null,null,null,null,null,null,null,null,"Jun"]
[null,null,null,null,null,null,null,null,null,null,"Jul"]
[null,null,null,null,null,null,null,null,null,null,"Aug"]
[null,null,null,null,null,null,null,null,null,null,"Sep"]
[null,null,null,null,null,null,null,null,null,null,"Oct"]
[null,null,null,null,null,null,null,null,null,null,"Nov"]
[null,null,null,null,null,null,null,null,null,null,"Dec"]
[null,null,null,null,null,null,null,null,null,null,"Annual",{"$f":"AVERAGE(L70:L81)","v":{"$error":"#DIV/0!"}},{"$f":"MAX(M70:M81)","v":0},{"$f":"AVERAGE(N70:N81)","v":{"$error":"#DIV/0!"}},{"$f":"MAX(O70:O81)","v":0}]

{"sheet":"CO 95% 10 min","index":21,"n_rows":82,"n_cols":19,"rows_kept":82,"cut":false,"hidden":false,"merged":[[4,0,5,7],[6,18,10,20],[12,18,14,20],[15,18,18,20],[69,10,81,10],[7,1,7,4],[7,5,7,7],[7,10,7,16],[9,10,21,10],[24,10,36,10],[39,10,51,10],[50,0,50,7],[51,0,54,7],[54,10,66,10]]}
[{"$f":"+'Cover Page'!$B$29","v":"Annual Performance Report 2024"},null,null,null,{"$f":"+'Cover Page'!$B$33","v":"Edmonton EFW"}]
[]
["Monitoring of Carbon Monoxide (10-minute avg)",null,null,null,"Whole Installation",null,null,"See  Notes in Cell S3",null,{"$f":"+A3","v":"Monitoring of Carbon Monoxide (10-minute avg)"},null,null,null,null,"Per Combustion Line",null,"Notes:",null,"Notes:"]
[]
["Please complete this tab for your plant if you have 10-minute average CO ELVs; otherwise, leave it blank and complete the CO 0.5 hourly tab"]
[]
[null,null,null,null,null,null,null,null,null,null,null,null,null,null,null,null,null,null,"User to add logic to complete Whole installation, Table A5:H18. From the data in Per Combustion Line, Table K6:Q79, subject to No. of lines installed"]
[{"$f":"+'Cover Page'!C39","v":2024},"10-minute Reference Periods",null,null,null,"Daily Reference Periods"]
["mg/Nm3","95%ile 10-min avg CO ELV","Highest daily 95%ile 10-min average","Monthly mean of 10-min averages","Highest 10-min average","Daily CO ELV","Monthly mean of  daily averages","Highest daily average",null,null,{"$f":"+A8","v":2024},"mg/Nm3","Highest daily 95%ile 10-min average","Monthly mean of 10-min averages","Highest 10-min average","Monthly mean of  daily averages","Highest daily average"]
["Jan",150,{"$f":"MAX(M10,M25)","v":302.3},{"$f":"AVERAGE(N10,N25)","v":29.85},{"$f":"MAX(O10,O25)","v":960.5},50,{"$f":"AVERAGE(P10,P25)","v":29.85},{"$f":"MAX(Q10,Q25)","v":61},null,null,"A1","Jan",99.8,26.6,677.1,26.6,41.9]
["Feb",{"$f":"+B10","v":150},{"$f":"MAX(M11,M26)","v":200},{"$f":"AVERAGE(N11,N26)","v":28},{"$f":"MAX(O11,O26)","v":864.1},{"$f":"+F10","v":50},{"$f":"AVERAGE(P11,P26)","v":28},{"$f":"MAX(Q11,Q26)","v":46.9},null,null,null,"Feb",200,26.3,824.6,26.3,46.9]
["Mar",{"$f":"+B11","v":150},250.2,31.2,1073.5,{"$f":"+F11","v":50},31.2,69.8,null,null,null,"Mar",250.2,27.4,1073.5,27.4,69.8,null,"Whole Installation table A5:H18:"]
["Apr",150,302.10000000000002,26,1884.2,50,26,88.8,null,null,null,"Apr",99,21.5,1884.2,21.5,44,null,"Mean: for 10-min and daily periods use average of all operational combustion lines."]
["May",150,115.1,24.5,478.3,50,24.5,39.1,null,null,null,"May",102.7,22,478.3,22,32.5]
["Jun",150,106.8,26.05,917.4,50,26.05,45.7,null,null,null,"Jun",105,21.8,917.4,21.8,39.200000000000003]
["Jul",150,147.19999999999999,30.05,853.7,50,30.05,44.5,null,null,null,"Jul",147.19999999999999,30,853.7,30,44.5,null,"Maximum: for 10-min and daily periods use the highest of all operational combustion lines in any month."]
["Aug",150,281,27.1,1045.0999999999999,50,27.1,68.8,null,null,null,"Aug",281,26.6,1045.0999999999999,26.6,68.8]
["Sep",150,144,28,1198.3,50,28,48.3,null,null,null,"Sep",144,26.8,1198.3,26.8,48.3]
["Oct",150,140.80000000000001,33.35,469.1,50,33.35,49.8,null,null,null,"Oct",140.80000000000001,30.6,469.1,30.6,45.8]
["Nov",150,149,34,771,50,34,49.8,null,null,null,"Nov",149,32.1,771,32.1,49.8]
["Dec",150,141.30000000000001,33.099999999999994,1137.0999999999999,50,33.099999999999994,46.3,null,null,null,"Dec",141.30000000000001,31.4,1137.0999999999999,31.4,46.3]
[null,null,null,null,null,null,null,null,null,null,null,"Annual",{"$f":"AVERAGE(M10:M21)","v":155},{"$f":"AVERAGE(N10:N21)","v":26.925000000000001},{"$f":"MAX(O10:O21)","v":1884.2},{"$f":"AVERAGE(P10:P21)","v":26.925000000000001},{"$f":"MAX(Q10:Q21)","v":69.8}]
[]
[null,null,null,null,null,null,null,null,null,null,{"$f":"+A8","v":2024},"mg/Nm3","Highest daily 95%ile 10-min average","Monthly mean of 10-min averages","Highest 10-min average","Monthly mean of  daily averages","Highest daily average"]
[null,null,null,null,null,null,null,null,null,null,"A2","Jan",302.3,33.1,960.5,33.1,61]
[null,null,null,null,null,null,null,null,null,null,null,"Feb",117.1,29.7,864.1,29.7,42.9]
[null,null,null,null,null,null,null,null,null,null,null,"Mar",127,35,352.8,35,44.6]
[null,null,null,null,null,null,null,null,null,null,null,"Apr",302.10000000000002,30.5,1005.2,30.5,88.8]
[null,null,null,null,null,null,null,null,null,null,null,"May",115.1,27,320.8,27,39.1]
[null,null,null,null,null,null,null,null,null,null,null,"Jun",106.8,30.3,444.3,30.3,45.7]
[null,null,null,null,null,null,null,null,null,null,null,"Jul",106.5,30.1,842.1,30.1,40.9]
[null,null,null,null,null,null,null,null,null,null,null,"Aug",117.5,27.6,810,27.6,47.5]
[null,null,null,null,null,null,null,null,null,null,null,"Sep",98.3,29.2,484.6,29.2,46.8]
[null,null,null,null,null,null,null,null,null,null,null,"Oct",120.1,36.1,376.6,36.1,49.8]
[null,null,null,null,null,null,null,null,null,null,null,"Nov",131,35.9,449.8,35.9,45.5]
[null,null,null,null,null,null,null,null,null,null,null,"Dec",124.3,34.799999999999997,284,34.799999999999997,44.9]
[null,null,null,null,null,null,null,null,null,null,null,"Annual",{"$f":"AVERAGE(M25:M36)","v":147.34166666666667},{"$f":"AVERAGE(N25:N36)","v":31.608333333333334},{"$f":"MAX(O25:O36)","v":1005.2},{"$f":"AVERAGE(P25:P36)","v":31.608333333333334},{"$f":"MAX(Q25:Q36)","v":88.8}]
[]
[null,null,null,null,null,null,null,null,null,null,{"$f":"+A8","v":2024},"mg/Nm3","Highest daily 95%ile 10-min average","Monthly mean of 10-min averages","Highest 10-min average","Monthly mean of  daily averages","Highest daily average"]
[null,null,null,null,null,null,null,null,null,null,"A3","Jan"]
[null,null,null,null,null,null,null,null,null,null,null,"Feb"]
[null,null,null,null,null,null,null,null,null,null,null,"Mar"]
[null,null,null,null,null,null,null,null,null,null,null,"Apr"]
[null,null,null,null,null,null,null,null,null,null,null,"May"]
[null,null,null,null,null,null,null,null,null,null,null,"Jun"]
[null,null,null,null,null,null,null,null,null,null,null,"Jul"]
[null,null,null,null,null,null,null,null,null,null,null,"Aug"]
[null,null,null,null,null,null,null,null,null,null,null,"Sep"]
[null,null,null,null,null,null,null,null,null,null,null,"Oct"]
[null,null,null,null,null,null,null,null,null,null,null,"Nov"]
["Comments :",null,null,null,null,null,null,null,null,null,null,"Dec"]
["Environment Agency explanatory note: The 10-minute average ELV is based on the “95th percentile”. In this case this means that 95% of the 10 minute averages in the relevant 24-hour period (i.e. 137) must be below 150 mg/Nm3, and 5% (i.e. 7) are allowed to be any value above 150 mg/Nm3. Whilst we expect operators to minimise CO emissions at all times, it is perfectly acceptable for the value of the maximum 10-minute average to be above 150 mg/Nm3, provided the 95th percentile ELV has been met for that period. ",null,null,null,null,null,null,null,null,null,null,"Annual",{"$f":"AVERAGE(M40:M51)","v":{"$error":"#DIV/0!"}},null,{"$f":"MAX(O40:O51)","v":0},{"$f":"AVERAGE(P40:P51)","v":{"$error":"#DIV/0!"}},{"$f":"MAX(Q40:Q51)","v":0}]
[]
[null,null,null,null,null,null,null,null,null,null,{"$f":"+A8","v":2024},"mg/Nm3","Highest daily 95%ile 10-min average","Monthly mean of 10-min averages","Highest 10-min average","Monthly mean of  daily averages","Highest daily average"]
[null,null,null,null,null,null,null,null,null,null,"A4","Jan"]
[null,null,null,null,null,null,null,null,null,null,null,"Feb"]
[null,null,null,null,null,null,null,null,null,null,null,"Mar"]
[null,null,null,null,null,null,null,null,null,null,null,"Apr"]
[null,null,null,null,null,null,null,null,null,null,null,"May"]
[null,null,null,null,null,null,null,null,null,null,null,"Jun"]
[null,null,null,null,null,null,null,null,null,null,null,"Jul"]
[null,null,null,null,null,null,null,null,null,null,null,"Aug"]
[null,null,null,null,null,null,null,null,null,null,null,"Sep"]
[null,null,null,null,null,null,null,null,null,null,null,"Oct"]
[null,null,null,null,null,null,null,null,null,null,null,"Nov"]
[null,null,null,null,null,null,null,null,null,null,null,"Dec"]
[null,null,null,null,null,null,null,null,null,null,null,"Annual",{"$f":"AVERAGE(M55:M66)","v":{"$error":"#DIV/0!"}},null,{"$f":"MAX(O55:O66)","v":0},{"$f":"AVERAGE(P55:P66)","v":{"$error":"#DIV/0!"}},{"$f":"MAX(Q55:Q66)","v":0}]
[]
[null,null,null,null,null,null,null,null,null,null,{"$f":"+A8","v":2024},"mg/Nm3","95%ile 10-min avg maximum","Monthly CO 10-min avg mean","10-min avg maximum","Monthly daily mean","Monthly daily maximum"]
[null,null,null,null,null,null,null,null,null,null,"A5","Jan"]
[null,null,null,null,null,null,null,null,null,null,null,"Feb"]
[null,null,null,null,null,null,null,null,null,null,null,"Mar"]
[null,null,null,null,null,null,null,null,null,null,null,"Apr"]
[null,null,null,null,null,null,null,null,null,null,null,"May"]
[null,null,null,null,null,null,null,null,null,null,null,"Jun"]
[null,null,null,null,null,null,null,null,null,null,null,"Jul"]
[null,null,null,null,null,null,null,null,null,null,null,"Aug"]
[null,null,null,null,null,null,null,null,null,null,null,"Sep"]
[null,null,null,null,null,null,null,null,null,null,null,"Oct"]
[null,null,null,null,null,null,null,null,null,null,null,"Nov"]
[null,null,null,null,null,null,null,null,null,null,null,"Dec"]
[null,null,null,null,null,null,null,null,null,null,null,"Annual",{"$f":"AVERAGE(M70:M81)","v":{"$error":"#DIV/0!"}},null,{"$f":"MAX(O70:O81)","v":0},{"$f":"AVERAGE(P70:P81)","v":{"$error":"#DIV/0!"}},{"$f":"MAX(Q70:Q81)","v":0}]

{"sheet":"NH3","index":22,"n_rows":79,"n_cols":17,"rows_kept":79,"cut":false,"hidden":false,"merged":[[3,16,7,18],[9,16,11,18],[12,16,15,18],[66,9,78,9],[4,1,4,3],[4,4,4,6],[4,9,4,14],[6,9,18,9],[21,9,33,9],[36,9,48,9],[47,0,47,6],[48,0,51,6],[51,9,63,9],[18,4,18,6]]}
[{"$f":"+'Cover Page'!$B$29","v":"Annual Performance Report 2024"},null,null,null,{"$f":"+'Cover Page'!$B$33","v":"Edmonton EFW"}]
[]
["Monitoring of Ammnonia emissions ",null,null,"Whole Installation",null,null,"See  Notes in Cell Q3",null,null,{"$f":"+A3","v":"Monitoring of Ammnonia emissions "},null,null,null,"Per Combustion Line",null,null,"Notes:"]
[null,null,null,null,null,null,null,null,null,null,null,null,null,null,null,null,"User to add logic to complete Whole installation, Table A5:G18. From the data in Per Combustion Line, Table J6:O79, subject to No. of lines installed"]
[{"$f":"+'Cover Page'!C39","v":2024},"1/2 Hourly Reference Periods",null,null,"Daily Reference Periods"]
["mg/Nm3","1/2 hourly NH3 ELV","Monthly mean of half-hourly averages","Highest half- hourly average","Daily NH3 ELV","Monthly mean of  daily averages","Highest daily average",null,null,{"$f":"+A5","v":2024},"mg/Nm3","Monthly mean of half-hourly averages","Highest half- hourly average","Monthly mean of  daily averages","Highest daily average"]
["Jan","None",{"$f":"AVERAGE(L7,L22)","v":6.4},{"$f":"MAX(M7,M22)","v":77.5},15,{"$f":"AVERAGE(N7,N22)","v":6.4},{"$f":"MAX(O7,O22)","v":13},null,null,"A1","Jan",6.3,77.5,6.3,10.9]
["Feb",{"$f":"+B7","v":"None"},{"$f":"AVERAGE(L8,L23)","v":8.65},{"$f":"MAX(M8,M23)","v":121.2},15,{"$f":"AVERAGE(N8,N23)","v":8.65},{"$f":"MAX(O8,O23)","v":20},null,null,null,"Feb",9.6,121.2,9.6,20]
["Mar",{"$f":"+B8","v":"None"},10,48.1,15,10,13.9,null,null,null,"Mar",10.5,48.1,10.5,13.9,null,"Whole Installation table A5:G18:"]
["Apr","None",9.3999999999999986,39,15,9.3999999999999986,14.9,null,null,null,"Apr",9.6999999999999993,39,9.6999999999999993,14.9,null,"Mean: for 1/2 hourly and daily periods calculate mean of values across all operational combustion lines for the month"]
["May","None",10.6,40.6,15,10.6,14.7,null,null,null,"May",11.7,38.1,11.7,14.7]
["Jun","None",10.35,42,15,10.35,13,null,null,null,"Jun",10,29.8,10,12.7]
["Jul","None",7.05,151.19999999999999,15,7.05,12.1,null,null,null,"Jul",8,151.19999999999999,8,12.1,null,"Maximum: for 1/2 hourly and daily periods use the highest value across all operational combustion lines for the month"]
["Aug","None",7.55,28,15,7.55,10.9,null,null,null,"Aug",8.1,28,8.1,10.9]
["Sep","None",7.1,28.5,15,7.1,12.6,null,null,null,"Sep",6.8,28.5,6.8,10]
["Oct","None",7.15,24.4,15,7.15,9.6999999999999993,null,null,null,"Oct",6.9,24.4,6.9,9.6]
["Nov","None",6.75,63,15,6.75,15.9,null,null,null,"Nov",6.1,19.899999999999999,6.1,9.9]
["Dec","None",5.9,27.1,15,5.9,11.8,null,null,null,"Dec",6.1,25.5,6.1,8.1999999999999993]
[null,null,null,null,null,null,null,null,null,null,"Annual",{"$f":"AVERAGE(L7:L18)","v":8.3166666666666647},{"$f":"MAX(M7:M18)","v":151.19999999999999},{"$f":"AVERAGE(N7:N18)","v":8.3166666666666647},{"$f":"MAX(O7:O18)","v":20}]
[]
[null,null,null,null,null,null,null,null,null,{"$f":"+A5","v":2024},"mg/Nm3","Monthly mean of half-hourly averages","Highest half- hourly average","Monthly mean of  daily averages","Highest daily average"]
[null,null,null,null,null,null,null,null,null,"A2","Jan",6.5,74.3,6.5,13]
[null,null,null,null,null,null,null,null,null,null,"Feb",7.7,82.2,7.7,13.8]
[null,null,null,null,null,null,null,null,null,null,"Mar",9.5,35.9,9.5,13]
[null,null,null,null,null,null,null,null,null,null,"Apr",9.1,33.6,9.1,13.1]
[null,null,null,null,null,null,null,null,null,null,"May",9.5,40.6,9.5,13.8]
[null,null,null,null,null,null,null,null,null,null,"Jun",10.7,42,10.7,13]
[null,null,null,null,null,null,null,null,null,null,"Jul",6.1,29.7,6.1,9.4]
[null,null,null,null,null,null,null,null,null,null,"Aug",7,25.5,7,9.9]
[null,null,null,null,null,null,null,null,null,null,"Sep",7.4,23.8,7.4,12.6]
[null,null,null,null,null,null,null,null,null,null,"Oct",7.4,21.3,7.4,9.6999999999999993]
[null,null,null,null,null,null,null,null,null,null,"Nov",7.4,63,7.4,15.9]
[null,null,null,null,null,null,null,null,null,null,"Dec",5.7,27.1,5.7,11.8]
[null,null,null,null,null,null,null,null,null,null,"Annual",{"$f":"AVERAGE(L22:L33)","v":7.8333333333333348},{"$f":"MAX(M22:M33)","v":82.2},{"$f":"AVERAGE(N22:N33)","v":7.8333333333333348},{"$f":"MAX(O22:O33)","v":15.9}]
[]
[null,null,null,null,null,null,null,null,null,{"$f":"+A5","v":2024},"mg/Nm3","Monthly mean of half-hourly averages","Highest half- hourly average","Monthly mean of  daily averages","Highest daily average"]
[null,null,null,null,null,null,null,null,null,"A3","Jan"]
[null,null,null,null,null,null,null,null,null,null,"Feb"]
[null,null,null,null,null,null,null,null,null,null,"Mar"]
[null,null,null,null,null,null,null,null,null,null,"Apr"]
[null,null,null,null,null,null,null,null,null,null,"May"]
[null,null,null,null,null,null,null,null,null,null,"Jun"]
[null,null,null,null,null,null,null,null,null,null,"Jul"]
[null,null,null,null,null,null,null,null,null,null,"Aug"]
[null,null,null,null,null,null,null,null,null,null,"Sep"]
[null,null,null,null,null,null,null,null,null,null,"Oct"]
[null,null,null,null,null,null,null,null,null,null,"Nov"]
["Comments :",null,null,null,null,null,null,null,null,null,"Dec"]
["An indicated ELV value of zero in the table above means that no ammonia limit is/was set in the permit.  ",null,null,null,null,null,null,null,null,null,"Annual",{"$f":"AVERAGE(L37:L48)","v":{"$error":"#DIV/0!"}},{"$f":"MAX(M37:M48)","v":0},{"$f":"AVERAGE(N37:N48)","v":{"$error":"#DIV/0!"}},{"$f":"MAX(O37:O48)","v":0}]
[]
[null,null,null,null,null,null,null,null,null,{"$f":"+A5","v":2024},"mg/Nm3","Monthly mean of half-hourly averages","Highest half- hourly average","Monthly mean of  daily averages","Highest daily average"]
[null,null,null,null,null,null,null,null,null,"A4","Jan"]
[null,null,null,null,null,null,null,null,null,null,"Feb"]
[null,null,null,null,null,null,null,null,null,null,"Mar"]
[null,null,null,null,null,null,null,null,null,null,"Apr"]
[null,null,null,null,null,null,null,null,null,null,"May"]
[null,null,null,null,null,null,null,null,null,null,"Jun"]
[null,null,null,null,null,null,null,null,null,null,"Jul"]
[null,null,null,null,null,null,null,null,null,null,"Aug"]
[null,null,null,null,null,null,null,null,null,null,"Sep"]
[null,null,null,null,null,null,null,null,null,null,"Oct"]
[null,null,null,null,null,null,null,null,null,null,"Nov"]
[null,null,null,null,null,null,null,null,null,null,"Dec"]
[null,null,null,null,null,null,null,null,null,null,"Annual",{"$f":"AVERAGE(L52:L63)","v":{"$error":"#DIV/0!"}},{"$f":"MAX(M52:M63)","v":0},{"$f":"AVERAGE(N52:N63)","v":{"$error":"#DIV/0!"}},{"$f":"MAX(O52:O63)","v":0}]
[]
[null,null,null,null,null,null,null,null,null,{"$f":"+A5","v":2024},"mg/Nm3","Monthly mean of half-hourly averages","Highest half- hourly average","Monthly mean of  daily averages","Highest daily average"]
[null,null,null,null,null,null,null,null,null,"A5","Jan"]
[null,null,null,null,null,null,null,null,null,null,"Feb"]
[null,null,null,null,null,null,null,null,null,null,"Mar"]
[null,null,null,null,null,null,null,null,null,null,"Apr"]
[null,null,null,null,null,null,null,null,null,null,"May"]
[null,null,null,null,null,null,null,null,null,null,"Jun"]
[null,null,null,null,null,null,null,null,null,null,"Jul"]
[null,null,null,null,null,null,null,null,null,null,"Aug"]
[null,null,null,null,null,null,null,null,null,null,"Sep"]
[null,null,null,null,null,null,null,null,null,null,"Oct"]
[null,null,null,null,null,null,null,null,null,null,"Nov"]
[null,null,null,null,null,null,null,null,null,null,"Dec"]
[null,null,null,null,null,null,null,null,null,null,"Annual",{"$f":"AVERAGE(L67:L78)","v":{"$error":"#DIV/0!"}},{"$f":"MAX(M67:M78)","v":0},{"$f":"AVERAGE(N67:N78)","v":{"$error":"#DIV/0!"}},{"$f":"MAX(O67:O78)","v":0}]

{"sheet":"Template changes log","index":23,"n_rows":18,"n_cols":3,"rows_kept":18,"cut":false,"hidden":false,"merged":[]}
["Log of changes to template (Environment Agency use only)"]
[]
["Date","Description of change","New version number and date"]
["2024-01-16","Air (periodic) tab: corrected default O2 reference from 6 to 11% ","Version 23.5a (for incinerators) - 16/01/2024"]
["2024-09-23","Air (periodic) tab: corrected symbol for Thallium to Tl"]
["2024-09-23","Air (periodic) tab: removed last year's references to different emission limit values applying from 03/12/23 and updated all relevant ELVs"]
["2024-09-23","Tabs for continuously monitored pollutants (HCl, SO2 etc.): changed terminology in table headings to improve clarity"]
["2024-09-23","Tabs for continuously monitored pollutants (HCl, SO2 etc.): removed last year's references to different emission limit values applying from 03/12/23 and updated all relevant ELVs"]
["2024-09-23","Perf 1 tab: updated formula for water usage to report m3 rather than litres and corrected error with formula copying operator name"]
["2024-09-23","Operational Summary tab: table added on start-ups and shut-downs"]
["2024-09-23","Operational Summary tab: table added on dioxins and mercury protocols"]
["2024-09-23","Operational Summary tab: table added on AST, QAL 2 and calibration functions"]
["2024-09-23","CO2 N2O tab: various changes made to notes to reflect the fact that most plants should now have calibrated CEMS and flow meters + some have C14 samplers and more up to date industry data","Version 24a (for incinerators) - 23/09/24"]
["2024-11-08","CO2 N2O tab: Changed the N2O CO2 equivalence factor from 298 to 265 in line with recently updated government greenhouse gas figures: https://www.gov.uk/government/publications/greenhouse-gas-reporting-conversion-factors-2024"]
["2024-11-08","CO2 N2O tab: Added an additional requirement for municipal EfW plants to state the yearly average biogenic percentage of the waste by mass, and reference to a document which sets out a methodology for calculating NCV of waste from the results of C14 sampling."]
["2024-11-08","Permit Compliance tab: Two additional columns added + explanatory notes to the table entitled \"Summary of non-compliances under the permit\" to allow CCS scores to be stated where relevant. "]
["2024-11-08","Residue Quality tab: Note added explaining application of TOC and LOI limits and asking operators to report both metrics where measured. ","Version 24.1a (for incinerators) - 08/11/24"]
["2024-11-27","Operational Summary tab: Tables on mercury & dioxins protocols and ASTs removed (covered instead by new tables added to updated Air 9 periodic monitoring form)","Version 24.2a (for incinerators) - 27/11/24"]